Cogmind - Beta 10.2 @@@ ROGUE MODE // 2021.04.02 @ 00:51:22 Player: Valguris Result: Heading to fleet! Performance ------------- Evolutions (9) 4500 Regions Visited (40) 8000 Robots Destroyed (1010) 5050 Value Destroyed (55745) 55745 Prototype IDs (182) 3640 Alien Tech Used (15) 3000 Bonus (76912) 76912 TOTAL SCORE: 156847 Bonus ------- Triggered High Security 2000 High Alert Combat Kills 29167 Follower Combat Kills 2585 Network Hubs Disabled 800 Aligned with FarCom 300 Met Data Miner 300 Met Zhirov 300 Met Warlord at Base 500 MAIN.C Attacked Warlord 500 Warlord Defense Kill 5778 Built Enhanced Grunts 300 A7 Reached Mainframe 300 Met R17 at Cetus 500 Used Core Reset Matrix 3000 Met R17 at Research 2000 Met Warlord at Research 2000 Invited to Help at Command 2000 Scanned by Researcher 500 Pursued by Intercept 1000 Destroyed MAIN.C Guards 500 Met MAIN.C 5000 Destroyed MAIN.C Shell 5000 Destroyed MAIN.C 10000 Met Warlord at Command 2000 Win 3000 Friendly Fire -2418 Cogmind --------- Core Integrity 1030/1600 Matter 285/300 Energy 1989/2090 System Corruption 8% Temperature Cool (0) Movement Walking (140) Ox2 Location To Fleet Rendezvous Parts ------- > --- POWER (4) -------- Improved Quantum Reactor Zero-point Reactor Vortex Chain Reactor > --- PROPULSION (3) --- Myomer Exoskeleton > --- UTILITY (17) ----- Experimental Cooling System High-capacity Storage Unit High-capacity Storage Unit High-capacity Storage Unit High-capacity Storage Unit High-capacity Storage Unit Experimental Energy Well Experimental Signal Interpreter Experimental Targeting Computer Advanced Target Analyzer Advanced Armor Integrity Analyzer Quantum Capacitor Damper Plating AEGIS Remote Shield > --- WEAPON (2) ------- Plasma Cutter > --- INVENTORY (44) --- Quantum Reactor Vortex Chain Reactor Centrium Wheel Centrium Wheel High-density Centrium Wheel Experimental Energy Well (1000) Advanced Matter Compressor (153) Long-range Sensor Array Centrium Heavy Armor Plating Heavy Regenerative Plating Heavy Regenerative Plating Advanced Force Field AEGIS Remote Shield Transdimensional Reconstructor High-powered Transdimensional Reconstructor Terrabomb Terrabomb Terrabomb Vortex Shotgun Vortex Shotgun EMDS EMDS Nova Cannon Potential Cannon Cooled Nova Cannon Improved Potential Cannon 8R-AWN's Boregun 8R-AWN's Boregun Compact Tesla Bomb Launcher Compact Tesla Bomb Launcher Compact Tesla Bomb Launcher Compact Tesla Bomb Launcher Hellfire Missile Launcher Ragnarok Missile Launcher Peak State ------------ > --- POWER ------------ Improved Quantum Reactor Zero-point Reactor Vortex Chain Reactor > --- PROPULSION ------- Myomer Exoskeleton > --- UTILITY ---------- Experimental Cooling System High-capacity Storage Unit High-capacity Storage Unit High-capacity Storage Unit High-capacity Storage Unit High-capacity Storage Unit Experimental Energy Well Experimental Signal Interpreter Experimental Targeting Computer Advanced Target Analyzer Advanced Armor Integrity Analyzer Quantum Capacitor Damper Plating AEGIS Remote Shield > --- WEAPON ----------- Improved Potential Cannon > --- INVENTORY -------- Quantum Reactor Improved Quantum Reactor Vortex Chain Reactor Centrium Wheel Centrium Wheel High-density Centrium Wheel Experimental Energy Well Advanced Matter Compressor Long-range Sensor Array Centrium Heavy Armor Plating Heavy Regenerative Plating Heavy Regenerative Plating Advanced Force Field AEGIS Remote Shield Transdimensional Reconstructor High-powered Transdimensional Reconstructor Core Regenerator Integrity Redistributor Terrabomb Terrabomb Terrabomb Vortex Shotgun Vortex Shotgun EMDS EMDS Nova Cannon Potential Cannon Cooled Nova Cannon 8R-AWN's Boregun 8R-AWN's Boregun Compact Tesla Bomb Launcher Compact Tesla Bomb Launcher Compact Tesla Bomb Launcher Compact Tesla Bomb Launcher Hellfire Missile Launcher Ragnarok Missile Launcher Plasma Cutter [Rating: 237] Favorites ----------- Power Antimatter Reactor Engine Cooled Ion Engine Power Core Light Nuclear Core Reactor Antimatter Reactor Propulsion Armored Huge Wheel Treads Light Treads Leg Myomer Exoskeleton Wheel Armored Huge Wheel Utility High-capacity Storage Unit Device Experimental Sensor Array Storage High-capacity Storage Unit Processor Experimental Signal Interpreter Hackware Advanced Hacking Suite Protection Damper Plating Artifact Phase Redirector Weapon EMDS Energy Gun Improved EM Shotgun Energy Cannon EMDS Ballistic Gun 8R-AWN's Boregun Ballistic Cannon Improved Light Cannon Launcher Compact Tesla Bomb Launcher Special Weapon Remote Datajack Piercing Weapon Makeshift Spear Special Melee Weapon Datajack Build | -11 -10 -10 -9 -9 -9 -8 -8 -7 -7 -7 -7 -7 -7 -6 -6 -6 -6 -6 -6 -5 -5 -5 -5 -5 -5 -4 -4 -4 -4 -4 -4 -4 -3 -3 -3 -2 -2 -2 -1 -1 ------- Run | Scr Mat Min Mat Min Exi Min Mat Fac Was Fac Low Low Dat Pro Fac Ext Cet Arc Hub Fac Was Fac Upp Upp War Pro Fac Was Fac Upp Upp Zhi Pro Res Tes Res Qua Sec Acc Com Slots Evolved 18 | . . . 2 . . . 2 2 . . . . . . 2 . . . . 2 . . . . . . 2 . . . . . . 2 . 2 . . 2 . Power 2 | . . . . . . . . 1 . . . . . . . . . . . . . . . . . . . . . . . . . . . . . . 1 . Propulsion 1 | . . . . . . . . . . . . . . . . . . . . . . . . . . . 1 . . . . . . . . . . . . . Utility 15 | . . . 2 . . . 2 1 . . . . . . 2 . . . . 2 . . . . . . 1 . . . . . . 2 . 2 . . 1 . Weapon . | . . . . . . . . . . . . . . . . . . . . . . . . . . . . . . . . . . . . . . . . . Parts Attached 900 | 6 10 3 41 18 19 28 26 17 8 13 10 19 4 15 16 34 8 4 46 15 5 19 4 8 29 11 6 6 77 2 2 11 2 19 42 24 52 136 57 28 Power 43 | 1 1 . 3 . . 2 . 3 2 2 . . . . . 1 . . 2 1 . 1 . . 3 . . . 4 . . 3 . . . 1 . 9 2 2 Engine 8 | 1 1 . 3 . . . . 2 . 1 . . . . . . . . . . . . . . . . . . . . . . . . . . . . . . Core 2 | . . . . . . 1 . 1 . . . . . . . . . . . . . . . . . . . . . . . . . . . . . . . . Reactor 33 | . . . . . . 1 . . 2 1 . . . . . 1 . . 2 1 . 1 . . 3 . . . 4 . . 3 . . . 1 . 9 2 2 Propulsion 56 | 2 . . 8 3 2 5 5 3 . 2 1 4 . 2 . . . . 6 1 . . . . . . 1 . 3 . . 2 . 1 3 . 2 . . . Treads 26 | 2 . . 8 3 2 1 4 1 . . . . . 1 . . . . 3 . . . . . . . 1 . . . . . . . . . . . . . Leg 5 | . . . . . . 3 . . . . . . . . . . . . . . . . . . . . . . . . . . . . 1 . 1 . . . Wheel 25 | . . . . . . 1 1 2 . 2 1 4 . 1 . . . . 3 1 . . . . . . . . 3 . . 2 . 1 2 . 1 . . . Hover . | . . . . . . . . . . . . . . . . . . . . . . . . . . . . . . . . . . . . . . . . . Flight . | . . . . . . . . . . . . . . . . . . . . . . . . . . . . . . . . . . . . . . . . . Utility 292 | 1 2 . 9 6 6 6 11 3 1 2 4 9 1 5 6 4 1 . 8 4 3 5 4 3 5 4 1 3 17 . 2 4 . 4 22 8 23 72 15 8 Device 160 | . . . . 2 3 2 5 1 . 1 4 8 1 5 3 3 1 . 2 3 . 4 3 3 4 2 . . 13 . 2 2 . 3 16 5 5 44 7 3 Storage 24 | 1 2 . 6 1 1 1 3 . . . . . . . . 1 . . . 1 . . . . . . . . . . . 1 . . . . 1 1 3 1 Processor 14 | . . . . . . 1 . . . 1 . . . . . . . . . . 1 1 . . . . . . 1 . . . . . . 1 . 7 . 1 Hackware 8 | . . . . . . . . 1 . . . . . . . . . . 2 . . . . . . . . . 1 . . . . 1 . . . 1 . 2 Protection 73 | . . . 3 3 2 2 3 1 1 . . 1 . . 3 . . . 4 . 2 . 1 . 1 2 1 3 2 . . 1 . . 6 2 10 13 5 1 Artifact 13 | . . . . . . . . . . . . . . . . . . . . . . . . . . . . . . . . . . . . . 7 6 . . Weapon 509 | 2 7 3 21 9 11 15 10 8 5 7 5 6 3 8 10 29 7 4 30 9 2 13 . 5 21 7 4 3 53 2 . 2 2 14 17 15 27 55 40 18 Energy Gun 25 | . 4 1 5 . 5 4 3 . . . . . . . . . . . . . . . . . 2 . . . . . . . . . . . . . . 1 Energy Cannon 333 | . . . 3 5 . 5 3 4 2 6 2 4 1 4 7 19 4 3 16 5 . 13 . 5 11 6 4 1 51 2 . 1 2 11 16 11 25 49 22 10 Ballistic Gun 28 | 2 1 . . . 2 2 . 1 1 . . . . . . . . . 13 . 2 . . . . 1 . 2 1 . . . . . . . . . . . Ballistic Cannon 12 | . . . 6 . . . . 1 1 . . 2 . . . 2 . . . . . . . . . . . . . . . . . . . . . . . . Launcher 74 | . 2 2 7 2 2 . 4 1 . . 3 . 1 3 3 2 1 . . 2 . . . . 7 . . . 1 . . . . 2 1 2 . 2 18 6 Special Weapon 30 | . . . . . 2 2 . 1 . . . . 1 1 . 6 2 1 1 2 . . . . 1 . . . . . . 1 . 1 . 1 2 4 . 1 Impact Weapon . | . . . . . . . . . . . . . . . . . . . . . . . . . . . . . . . . . . . . . . . . . Slashing Weapon . | . . . . . . . . . . . . . . . . . . . . . . . . . . . . . . . . . . . . . . . . . Piercing Weapon 5 | . . . . . . 2 . . 1 1 . . . . . . . . . . . . . . . . . . . . . . . . . 1 . . . . Special Melee Weapon 2 | . . . . 2 . . . . . . . . . . . . . . . . . . . . . . . . . . . . . . . . . . . . Unidentified Prototypes 47 | . . . 3 1 . . . . . 1 . 1 . . . . . . 1 . . . 1 1 9 4 . . 3 . . 4 . . 2 2 3 5 1 5 Parts Lost 44 | . 1 . . . 3 9 2 3 . . . 2 . 2 1 1 1 . 2 . . . . . 2 . . . 7 . . . . . 1 . . 6 . 1 Power 8 | . . . . . . 1 . 2 . . . . . . . 1 . . . . . . . . . . . . 2 . . . . . . . . 1 . 1 Propulsion 7 | . . . . . 2 2 . 1 . . . 1 . 1 . . . . . . . . . . . . . . . . . . . . . . . . . . Utility 19 | . . . . . . 3 2 . . . . . . . 1 . 1 . 1 . . . . . 1 . . . 4 . . . . . 1 . . 5 . . Weapon 10 | . 1 . . . 1 3 . . . . . 1 . 1 . . . . 1 . . . . . 1 . . . 1 . . . . . . . . . . . Highest Loss Streak 5 | . 1 . . . 3 5 1 2 . . . 1 . 1 1 1 1 . 1 . . . . . 2 . . . 3 . . . . . 1 . . 1 . 1 Average Slot Usage (%) 80 | . 93 100 97 99 94 95 97 97 97 84 84 83 84 76 80 80 79 80 77 74 82 78 75 75 72 72 73 79 73 70 70 70 69 71 73 73 74 71 74 73 Engine 2 | . 14 14 10 11 11 3 . 7 1 . . . . . . . . . . . . . . . . . . . . . . . . . . . . . . . Reactor 8 | . . . . . . 3 . . 12 15 15 15 15 15 13 13 13 13 13 11 11 11 11 11 11 11 10 10 9 10 10 10 10 9 9 8 8 7 11 11 Treads 4 | . 28 28 21 22 21 5 8 7 . . . . . 6 . . . . 1 . . . . . . . 3 5 . . . . . . . . . . . . Leg 1 | . . . . . . 14 9 . . . . . . . . . . . . . . . . . . . . . . . . . . . 2 4 4 4 3 3 Wheel 4 | . . . . . . 1 . 6 15 15 15 14 15 . 6 6 6 6 4 4 5 5 5 5 5 5 5 5 9 10 10 10 10 9 3 . . . . . Device 14 | . . . . . 4 . 8 7 13 6 7 7 7 7 13 12 12 13 15 20 17 23 22 22 21 22 20 20 17 20 20 19 20 22 25 31 25 16 13 10 Storage 20 | . 21 28 31 32 28 22 25 23 23 23 23 23 23 23 20 20 20 20 20 16 17 17 17 16 16 16 15 15 15 15 15 15 15 13 13 12 15 19 19 20 Processor 3 | . . . . . . 7 9 7 5 . . . . . . . . . . . 4 1 5 5 5 5 5 5 5 5 5 5 5 4 4 4 4 9 11 14 Hackware 1 | . . . . . . . . 4 5 . . . . . . . . . . . . . . . . . . . 2 . . . . 3 4 4 4 3 3 3 Protection 6 | . . . 10 10 5 9 8 8 . 7 7 6 7 7 12 13 13 13 9 11 11 8 5 5 5 4 9 10 8 5 5 5 5 4 3 3 3 3 4 3 Energy Gun 1 | . 20 15 2 . 10 6 7 . . . . . . . . . . . . . . . . . . . . . . . . . . . . . . . . . Energy Cannon 7 | . . . 11 19 4 11 10 14 4 14 14 14 15 14 11 11 10 9 7 5 . 5 5 5 4 5 5 . 5 5 5 3 4 3 5 4 3 3 1 2 Naked Turns . | . . . . . . . . . . . . . . . . . . . . . . . . . . . . . . . . . . . . . . . . . Heaviest Build 322 | 11 32 32 85 88 90 93 103 124 169 171 172 172 172 172 197 223 212 209 225 230 227 230 210 211 237 233 236 253 255 226 226 226 226 227 227 226 258 274 322 320 Greatest Support 120 | 40 40 40 43 43 51 51 40 20 20 20 20 20 20 70 28 28 28 28 70 28 28 28 28 28 28 28 30 28 38 38 38 38 38 40 100 100 100 120 120 120 Greatest Overweight (x) 12 | . . . 1 2 2 8 6 12 8 8 8 8 8 6 7 7 7 7 8 8 8 8 7 7 8 8 8 9 9 5 5 5 5 5 5 2 2 2 2 2 Average Overweight (x) 4 | . . . . 1 1 2 1 9 6 7 8 7 8 2 6 6 7 7 6 7 7 7 7 6 7 7 7 7 5 5 5 5 5 5 3 2 2 1 2 2 Largest Inventory Capacity 50 | 6 14 14 24 24 24 24 26 26 26 26 26 26 26 26 26 34 28 28 28 28 28 28 28 28 28 28 28 28 28 28 28 28 28 28 28 28 34 40 50 44 Average Capacity 27 | 5 9 14 20 23 21 18 24 26 26 26 26 26 26 26 26 26 28 28 28 27 28 28 28 28 28 28 28 28 28 28 28 28 28 28 28 28 33 39 41 44 Most Carried 44 | 6 12 14 24 24 24 24 26 26 26 26 26 26 25 26 26 26 26 28 28 28 28 28 28 28 28 28 28 28 28 28 27 28 28 28 28 28 34 40 43 44 Average Carried 26 | 3 7 13 19 23 20 16 22 25 25 25 25 25 25 25 25 24 25 26 27 25 26 27 27 27 27 27 27 27 27 27 27 27 27 27 26 27 33 37 39 41 Final Capacity 44 | 6 14 14 24 24 24 18 26 26 26 26 26 26 26 26 26 28 28 28 28 28 28 28 28 28 28 28 28 28 28 28 28 28 28 28 28 28 34 40 44 44 Final Carried 42 | 6 12 14 24 24 24 16 26 26 26 26 26 25 25 26 24 26 25 28 27 26 28 28 28 28 28 28 28 28 28 27 27 28 28 28 28 28 34 40 41 42 Class Distribution -------------------- 42% | Hauler-Mutant 31% | Generator-Mutant 7% | Mutant 7% | Generator-Skirmisher 7% | Scavenger-Mutant Dominant Class ---------------- Mutant | -10/Materials Mutant | -10/Mines Hauler-Mutant | -9/Materials Hauler-Mutant | -9/Mines Hauler-Mutant | -9/Exiles Scavenger-Mutant | -8/Mines Hauler-Mutant | -8/Materials Hauler-Mutant | -7/Factory Scavenger-Mutant | -7/Waste Hauler-Mutant | -7/Factory Hauler-Mutant | -7/Lower Caves Hauler-Mutant | -7/Lower Caves Hauler-Mutant | -7/Data Miner Hauler-Mutant | -6/Proximity Caves Hauler-Mutant | -6/Factory Hauler-Mutant | -6/Extension Commander-Mutant | -6/Cetus Hauler-Mutant | -6/Archives Scavenger-Mutant | -6/Hub_04(d) Hauler-Mutant | -5/Factory Scavenger-Mutant | -5/Waste Hauler-Mutant | -5/Factory Hauler-Mutant | -5/Upper Caves Hauler-Mutant | -5/Upper Caves Generator-Mutant | -5/Warlord Generator-Mutant | -4/Proximity Caves Generator-Mutant | -4/Factory Generator-Mutant | -4/Waste Generator-Mutant | -4/Factory Generator-Mutant | -4/Upper Caves Generator-Mutant | -4/Upper Caves Generator-Mutant | -4/Zhirov Generator-Mutant | -3/Proximity Caves Generator-Skirmisher | -3/Research Generator-Skirmisher | -3/Testing Generator-Skirmisher | -2/Research Generator-Mutant | -2/Quarantine Generator-Mutant | -2/Section 7 Generator-Mutant | -1/Access Generator-Mutant | -1/Command Resources | -11 -10 -10 -9 -9 -9 -8 -8 -7 -7 -7 -7 -7 -7 -6 -6 -6 -6 -6 -6 -5 -5 -5 -5 -5 -5 -4 -4 -4 -4 -4 -4 -4 -3 -3 -3 -2 -2 -2 -1 -1 ----------- Run | Scr Mat Min Mat Min Exi Min Mat Fac Was Fac Low Low Dat Pro Fac Ext Cet Arc Hub Fac Was Fac Upp Upp War Pro Fac Was Fac Upp Upp Zhi Pro Res Tes Res Qua Sec Acc Com Matter Collected 26541 | 203 168 52 735 199 589 324 203 517 497 130 178 304 . 259 180 613 115 20 1256 328 . 600 311 229 798 220 120 104 2665 20 152 237 437 839 501 670 1708 5946 3061 1053 Remotely . | . . . . . . . . . . . . . . . . . . . . . . . . . . . . . . . . . . . . . . . . . Salvage Created 61757 | . 341 48 1415 400 350 408 812 822 1788 658 159 174 . 432 766 1089 177 80 2674 929 1463 542 826 439 1627 237 351 350 6117 136 239 237 706 1446 1256 636 2347 11198 13928 4154 Parts 2184 | . 27 3 90 34 65 14 41 37 46 18 5 14 . 21 38 36 4 9 145 42 33 18 11 8 57 9 11 5 225 3 1 16 19 35 68 26 81 305 445 119 Haulers Intercepted 27 | . . . 5 . . . 2 . 1 1 . . . . . . . . 2 . . 1 1 . . . . . 4 . . . . . 1 1 . 5 3 . Recyclers Shooed 16 | . . . 3 . . . 1 . . . . . . . . 2 . . . . . 2 . . . . . . 1 . . . . . . . . . 6 1 Parts Field Recycled . | . . . . . . . . . . . . . . . . . . . . . . . . . . . . . . . . . . . . . . . . . Retrieved Matter . | . . . . . . . . . . . . . . . . . . . . . . . . . . . . . . . . . . . . . . . . . Parts Self-Destructed 144 | . . . . . . . . . . . 6 . . 9 . . . . . . . . . 4 99 8 . . . 3 . 10 5 . . . . . . . Prevented 71 | . . . . . . . . . . . 2 10 . 14 . . . . . . . . 11 5 21 1 . . . . 1 . 6 . . . . . . . Kills | -11 -10 -10 -9 -9 -9 -8 -8 -7 -7 -7 -7 -7 -7 -6 -6 -6 -6 -6 -6 -5 -5 -5 -5 -5 -5 -4 -4 -4 -4 -4 -4 -4 -3 -3 -3 -2 -2 -2 -1 -1 ------- Run | Scr Mat Min Mat Min Exi Min Mat Fac Was Fac Low Low Dat Pro Fac Ext Cet Arc Hub Fac Was Fac Upp Upp War Pro Fac Was Fac Upp Upp Zhi Pro Res Tes Res Qua Sec Acc Com Combat Hostiles Destroyed 793 | . 11 1 30 11 5 7 18 16 6 8 9 2 . 9 16 12 3 . 31 11 5 4 13 7 52 3 4 . 75 2 3 . 9 19 17 13 28 128 151 54 Melee 4 | . . . . 1 . . . . . . . . . . . . . . . . . . . . . . . . . . . . . . . . . 1 2 . Guns 38 | . 4 1 . . . 2 3 . 6 . . . . . . . . . 17 . 5 . . . . . . . . . . . . . . . . . . . Cannons 261 | . . . 15 6 . 2 7 8 . 6 . 1 . 1 4 9 1 . 11 4 . 2 3 4 7 3 2 . 37 2 1 . 4 6 10 3 14 49 22 17 AOE 219 | . 7 . 15 4 4 3 8 6 . . 9 . . 5 7 . 1 . . 2 . . . . 35 . . . 8 . . . . 3 3 7 . 17 50 25 Classes Destroyed 33 | . 3 . 7 1 4 1 . . 2 1 . 2 . . 1 . . . 1 1 . . . . 5 1 . . . . . . . . . . . 3 . . Worker 60 | . . . 2 . . . . 3 . 2 . . . . . 1 . . 2 1 . 2 . . . . . . 20 . . . . 1 . 1 1 2 21 1 Builder 20 | . . . 1 . . . . 2 . . . . . . . . . . 1 1 . . . . . . . . 3 . . . . 2 . 1 . 4 5 . Tunneler 9 | . . . . 3 . 2 . . . . . . . . . . . . 2 . . . . . . . . . 2 . . . . . . . . . . . Hauler 27 | . . . 5 . . . 2 . 1 1 . . . . . . . . 2 . . 1 1 . . . . . 4 . . . . . 1 1 . 5 3 . Recycler 16 | . . . 2 . . . 3 . . . . . . . . 1 . . . . . 1 . . . . . . 2 . . . . 1 . . 1 3 2 . Carrier 1 | . . . . . . . . . . . . . . . . . . . . . . . . . . . . . . . . . . . . . . 1 . . Minesweeper 2 | . . . . . . . . . . . . . . . . . . . . . . . . . . 1 . . . . . . 1 . . . . . . . Mechanic 14 | . . . . . . . . . . . . . . . . . . . . 1 . . . . 1 . . . 1 . . . . . . . . 4 7 . Operator 11 | . . . 2 . . . . . . . . . . . . 2 . 2 1 . . . . . . . . . . . . . . . . . 2 1 1 . Drone 1 | . . . . . 1 . . . . . . . . . . . . . . . . . . . . . . . . . . . . . . . . . . . Turret 1 | . . . . . 1 . . . . . . . . . . . . . . . . . . . . . . . . . . . . . . . . . . . Watcher 38 | . 1 . 3 . . . 1 1 . . . . . . . 2 . . 2 . . . . . . . . . 8 . . . . 1 2 . 1 5 10 1 Swarmer 96 | . 3 . 9 3 . . 7 4 . . 6 . . 3 8 . 1 . 2 . . . 1 . 9 . . . 4 . . . 1 4 3 8 . 5 5 10 Saboteur 19 | . . . . . . . . . . . . . . . . . . . . . . . . . 5 . . . 1 . . . . . . . . 2 10 1 Grunt 309 | . 8 1 12 8 . 5 6 6 . 6 2 . . 4 3 4 1 . 4 4 . . 10 4 22 2 5 . 32 . 3 . 2 10 . . 12 50 68 15 Brawler 31 | . . . . . . . . . . . . . . . . . . . . 2 . . . . 1 . . . 2 . . . . . . . . 9 12 5 Duelist 23 | . . . 1 . . . 1 . . . . . . . 1 . . . . 1 . . 1 1 . . . . 2 . . . . . . . . 7 8 . Protector 27 | . . . . . . . . . . . . . . . 1 . . . 4 . . . . . 1 . . . 3 . . . . . . . 1 7 6 4 Researcher 1 | . . . . . . . . . . . . . . . . . . . . . . . . . . . . . . . . . . . . . . 1 . . Sentry 69 | . . . 8 . . . 4 4 . 2 1 . . 1 2 5 . . 5 2 . 2 1 . . . . . 7 . . . 1 2 3 3 . 9 7 . Demolisher 2 | . . . . . . . . . . . . . . . . . . . . . . . . . 2 . . . . . . . . . . . . . . . Specialist 5 | . . . . . . . . . . . . . . . . . . . . . . . . . 2 . . . . . . . . . . . 2 . . 1 Hunter 45 | . . . . . . 1 . 2 . . . . . 1 1 1 . . . . . 1 . 1 . . . . 11 . . . . 2 2 . 2 11 8 1 Programmer 90 | . . . . . . . . . . . . . . . . . . . 4 2 . 1 . 1 5 1 . . 14 2 . . . . 9 1 8 17 14 11 Q-Series 1 | . . . . . . . . . . . . . . . . . . . . . . . . . . . . . . . . . . . . . . 1 . . Behemoth 6 | . . . . . . . . . . . . 1 . . . 2 . . . . . . . . . . . . . . . . . . . . . 3 . . Compactor 12 | . . . . . . . . . 6 . . . . . . . . . . . 5 . . . . . . 1 . . . . . . . . . . . . Cetus Guard 1 | . . . . . . . . . . . . . . . . . 1 . . . . . . . . . . . . . . . . . . . . . . . Quarantine Guard 3 | . . . . . . . . . . . . . . . . . . . . . . . . . . . . . . . . . . . . . 3 . . . S7 Guard 2 | . . . . . . . . . . . . . . . . . . . . . . . . . . . . . . . . . . . . . . 2 . . M Guard 2 | . . . . . . . . . . . . . . . . . . . . . . . . . . . . . . . . . . . . . . . . 2 Lightning 12 | . . . . . . . . . . . . . . . . . . . 12 . . . . . . . . . . . . . . . . . . . . . Tracker 4 | . . . . . . . . . . . . . . . . . . . . . . . . . . . . . . . . . . . . . . 2 2 . Combat Programmer 2 | . . . . . . . . . . . . . . . . . . . . . . . . . . . . . . . . . . . . . . . 1 1 Investigator 5 | . . . . . . . . . . . . . . . . . . . . . . . . . . . . . . . . . . . . . . 1 2 2 Striker 12 | . . . . . . . . . . . . . . . . . . . . . . . . . 3 . . . . . . . . 1 . . . 1 5 2 Executioner 11 | . . . . . . . . . . . . . . . . . . . . . . . . . 2 . . . . . . . . . . 1 . 3 5 . Zionite 5 | . . . . . 5 . . . . . . . . . . . . . . . . . . . . . . . . . . . . . . . . . . . Decomposer 3 | . . . . . . . . . . . . 2 . . . . . . . . . . . . . . . . . 1 . . . . . . . . . . Thief 1 | . . . . . . . . . . . . 1 . . . . . . . . . . . . . . . . . . . . . . . . . . . . Assembled 4 | . . . . . 4 . . . . . . . . . . . . . . . . . . . . . . . . . . . . . . . . . . . Surgeon 2 | . . . . . . . . . . 2 . . . . . . . . . . . . . . . . . . . . . . . . . . . . . . Thug 1 | . . . . . . . . . . . . . . . . . . . . . . . . . . . . . . . . . 1 . . . . . . . Savage 3 | . . . . . . . . . . . . . . . . . . . . . . . . . . . . . . . . . 3 . . . . . . . Martyr 2 | . . . . . . . . . 2 . . . . . . . . . . . . . . . . . . . . . . . . . . . . . . . Mutant 2 | . . . . . . . . . . . . . . . . . . . . . . . . . 1 . . . . . . . 1 . . . . . . . Best Kill Streak 42 | . 3 1 7 7 6 3 7 10 4 2 5 1 . 3 5 2 2 2 9 7 4 2 5 4 18 1 4 . 15 2 3 . 5 5 3 4 5 33 42 33 Combat Bots Only 32 | . 3 1 7 5 3 3 6 6 3 2 5 1 . 3 5 2 2 . 9 4 4 2 5 4 17 1 4 . 9 2 3 . 5 5 3 4 5 31 32 32 Max Kills in Single Turn 12 | . 3 1 3 6 2 2 6 5 1 1 2 1 . 3 3 1 1 1 2 2 1 1 1 1 12 1 1 1 3 1 1 . 2 1 3 3 2 4 6 4 Gunslinging . | . . . . . . . . . . . . . . . . . . . . . . . . . . . . . . . . . . . . . . . . . Exploded 11 | . 3 . 3 3 1 2 4 2 . . 2 . . 3 3 . 1 . . 1 . . . . 11 . . . 2 . . . . 1 3 3 . 3 4 4 Melee 1 | . . . . 1 . . . . . . . . . . . . . . . . . . . . . . . . . . . . . . . . . 1 1 . Uniques/NPCs Destroyed 6 | . . . . . 4 1 . . . . . . . . . . . . . . . . . . . . . . . . . . . . . . . . . 1 8R-AWN (-9/Exiles) EX-HEX (-9/Exiles) EX-BIN (-9/Exiles) EX-DEC (-9/Exiles) 7V-RTL (-8/Mines) MAIN.C Shell (-1/Command) Combat | -11 -10 -10 -9 -9 -9 -8 -8 -7 -7 -7 -7 -7 -7 -6 -6 -6 -6 -6 -6 -5 -5 -5 -5 -5 -5 -4 -4 -4 -4 -4 -4 -4 -3 -3 -3 -2 -2 -2 -1 -1 -------- Run | Scr Mat Min Mat Min Exi Min Mat Fac Was Fac Low Low Dat Pro Fac Ext Cet Arc Hub Fac Was Fac Upp Upp War Pro Fac Was Fac Upp Upp Zhi Pro Res Tes Res Qua Sec Acc Com Damage Taken 23249 | . 396 . 508 216 612 2066 593 605 . 391 295 404 . 399 564 805 79 29 1195 115 20 44 189 198 2103 4 60 . 1473 14 129 . 147 372 193 26 542 4035 2388 2040 Core 1967 | . 46 . 39 23 46 183 103 46 . 48 11 51 . . . 17 . . 53 2 . 14 10 . 321 . . . 120 2 . . 25 72 2 . 117 248 208 160 Absorbed by Shields 10725 | . . . . . . 123 . . . . . . . . 59 44 12 . 680 87 19 39 168 152 398 3 55 . 560 . . . . . . 28 558 3261 2479 2000 Reduced by Siege Mode 14 | . . . . . . . . . . . . . . . . . . . 14 . . . . . . . . . . . . . . . . . . . . . Redirected to Core 174 | . . . . . . . . . . . . . . . . . . . . . . . . . . . . . . . . . . . . . 117 57 . . Core Remaining (%) 73 | 100 . 81 . . . 27 81 . . . . . . 77 . . . . 91 . . . . . . 65 . . . . . . 87 . 94 . . 45 . 64 Volleys Fired 2432 | . 29 1 64 13 184 38 46 39 33 24 8 24 2 17 35 75 11 10 98 26 24 40 24 18 46 15 11 2 265 16 11 17 31 74 60 37 131 472 265 96 Largest 2 | . 2 2 2 2 2 2 2 2 2 2 2 2 1 2 2 2 2 2 2 2 2 2 1 2 2 2 1 2 2 1 1 1 1 1 1 1 1 1 2 2 Hottest 200 | . 80 80 124 124 90 148 148 148 61 138 138 138 30 138 138 151 138 138 180 180 90 125 70 125 160 125 90 60 125 35 70 20 70 90 113 113 200 200 200 200 Shots Fired 3112 | . 53 2 112 22 346 60 79 75 45 48 9 37 2 28 47 116 15 19 170 35 44 43 24 19 47 18 11 4 287 16 11 17 31 74 60 37 131 469 344 105 Gun 622 | . 49 2 4 . 327 25 29 . 29 . . . . . . . . . 103 . 40 . . . . . . 4 . . . . . . . . . . . 10 Cannon 2086 | . . . 93 19 . 29 41 72 16 48 2 37 . 21 36 86 9 13 66 25 4 43 24 19 36 18 11 . 284 16 11 . 31 66 59 30 124 455 172 70 Launcher 306 | . 4 . 15 3 13 2 9 2 . . 7 . . 6 11 1 4 . . 8 . . . . 9 . . . 3 . . . . 6 1 6 . 3 172 21 Special 98 | . . . . . 6 4 . 1 . . . . 2 1 . 29 2 6 1 2 . . . . 2 . . . . . . 17 . 2 . 1 7 11 . 4 Kinetic 325 | . 22 . 45 . 38 4 . . 45 . . 10 . . . 14 . . 103 . 40 . . . . . . 4 . . . . . . . . . . . . Thermal 769 | . 3 . 6 9 . 38 70 20 . . . . . . 11 18 . 13 25 12 4 27 . 3 2 7 3 . 96 16 . 17 11 12 43 8 61 129 74 31 Explosive 82 | . 4 . 15 3 13 2 9 2 . . 7 . . 2 . 1 . . . . . . . . 2 . . . 3 . . . . 6 1 6 . 3 3 . Electromagnetic 1853 | . 24 2 46 10 289 15 . 52 . 48 2 27 . 25 36 54 13 6 41 21 . 16 24 16 36 11 8 . 188 . 11 . 20 54 16 22 63 326 267 64 Entropic 15 | . . . . . . . . . . . . . . . . . . . . . . . . . 5 . . . . . . . . . . . . . . 10 Robot Hit Streak 54 | . 8 2 13 6 27 7 7 11 5 23 3 11 1 6 23 12 7 6 14 6 8 6 4 9 6 8 10 3 11 5 5 6 8 11 6 12 18 54 16 21 Robot Miss Streak 5 | . 3 . 2 2 5 2 2 3 4 4 1 3 1 2 1 5 . 2 4 2 3 2 2 1 5 2 1 2 3 2 1 2 4 3 3 2 2 5 3 3 Penetration Max 2 | . . . . . 2 . . . 1 . . . . . . . . . 2 . . . 1 . 1 . 1 . 1 . 1 . 1 1 . . 1 1 1 1 Secondary Targets 5 | . 1 1 . . . . . . 1 . . . . . . . . . 2 . . . . . . . . . . . . . . . . . . . . . Max Gunslinging Chain 1 | . 1 1 . . . . . . 1 . . . . . . . . . 1 . . . . . . . . . . . . . . . . . . . . . Capacitor 1165 | . . . . . . . . . . . . . . . . . . . . . . . . . . . . . 123 16 11 . 31 66 59 30 122 455 172 80 Shots Hit Robots 2006 | . 32 2 64 12 299 71 52 56 20 41 4 20 1 20 26 78 6 13 110 21 24 19 15 14 26 8 4 1 162 8 6 13 12 32 23 22 67 304 222 76 Core Hits 1371 | . 22 1 52 16 63 25 31 34 12 19 10 7 . 15 33 25 10 6 56 18 7 7 6 4 70 3 3 1 114 3 1 8 7 24 20 17 28 166 325 102 Critical Hits 305 | . . . 2 . 21 4 . 2 10 . . . . 1 . 4 . 1 51 1 11 3 4 1 4 2 2 2 37 . 1 3 3 4 3 2 12 68 23 23 Critical Kills 107 | . . . 1 . 3 . . 1 6 . . . . . . 1 . 1 17 . 5 . . . 1 . 2 1 15 . . 1 1 1 1 . 7 24 10 8 Critical Parts Destroyed 160 | . . . 1 . 11 2 . 1 2 . . . . 1 . 2 . . 33 1 1 1 4 1 2 2 . . 20 . 1 2 1 3 2 1 5 35 13 12 Melee Attacks 57 | . . . . 1 . 48 . . 5 3 . . . . . . . . . . . . . . . . . . . . . . . . . . . . . . Impact . | . . . . . . . . . . . . . . . . . . . . . . . . . . . . . . . . . . . . . . . . . Slashing . | . . . . . . . . . . . . . . . . . . . . . . . . . . . . . . . . . . . . . . . . . Piercing 56 | . . . . . . 48 . . 5 3 . . . . . . . . . . . . . . . . . . . . . . . . . . . . . . Sneak Attacks 9 | . . . . 1 . . . . 5 3 . . . . . . . . . . . . . . . . . . . . . . . . . . . . . . Combat Hostiles . | . . . . . . . . . . . . . . . . . . . . . . . . . . . . . . . . . . . . . . . . . Follow-up Attacks . | . . . . . . . . . . . . . . . . . . . . . . . . . . . . . . . . . . . . . . . . . Damage Inflicted 136595 | . 855 37 2831 631 1426 1695 2409 2161 776 1435 791 424 . 1244 1625 2290 395 400 3410 1486 523 1151 1732 841 10107 346 601 41 13973 395 518 155 1103 3086 2102 2125 4865 26722 29566 10322 Guns 4710 | . 347 29 20 . 745 136 394 . 329 . . . . . . . . . 1541 . 523 . . . . . . 41 . . . . . . . . . . . 605 Cannons 74803 | . . . 1384 203 . 284 853 1299 . 1091 23 424 . 431 710 2290 121 336 1787 811 . 1076 1580 841 1579 346 453 . 10990 395 518 . 1103 2434 1951 1301 4865 20659 8600 4065 Explosions 54991 | . 491 . 1328 387 677 311 1162 861 . 137 768 . . 813 915 . 274 . 43 675 . 75 152 . 8528 . 148 . 2983 . . . . 652 151 824 . 6063 20966 5607 Melee 1599 | . . . . . . 945 . . 447 207 . . . . . . . . . . . . . . . . . . . . . . . . . . . . . . Ramming 218 | . 17 8 99 41 4 9 . 1 . . . . . . . . . . 39 . . . . . . . . . . . . . . . . . . . . . Kinetic 3939 | . 85 . 481 . 501 45 . . 329 . . . . . . 393 . . 1541 . 523 . . . . . . 41 . . . . . . . . . . . . Thermal 38728 | . 149 . 329 61 . 343 1247 520 . 137 . . . 191 255 329 . 246 578 397 . 584 152 53 348 50 148 . 2945 395 . 155 . 70 1164 422 2053 11249 8768 5390 Explosive 13831 | . 365 . 924 346 677 311 1162 685 . . 768 . . 408 . . . . . . . 75 . . 1503 . . . 2306 . . . . 652 151 824 . 696 1978 . Electromagnetic 71532 | . 239 29 998 183 244 42 . 955 . 1091 23 424 . 645 1370 1568 395 154 1252 1089 . 492 1580 788 2113 296 453 . 8722 . 518 . 1103 2364 787 879 2812 14777 18820 4327 Impact . | . . . . . . . . . . . . . . . . . . . . . . . . . . . . . . . . . . . . . . . . . Slashing . | . . . . . . . . . . . . . . . . . . . . . . . . . . . . . . . . . . . . . . . . . Piercing 1599 | . . . . . . 945 . . 447 207 . . . . . . . . . . . . . . . . . . . . . . . . . . . . . . Entropic 6748 | . . . . . . . . . . . . . . . . . . . . . . . . . 6143 . . . . . . . . . . . . . . 605 Highest Corruption 16 | . . . . . . . . . . . . . . . . . . . 2 . 1 1 . . . . . . 2 3 3 3 3 1 2 . 2 16 6 8 Average Corruption 4 | . . . . . . . . . . . . . . . . . . . 1 . 1 1 . . . . . . 1 2 3 3 3 1 1 . 1 8 3 7 Corruption Purged 5 | . . . . . . . . . . . . . . . . . . . 4 . . 1 . . . . . . . . . . . . . . . . . . Effects 242 | . . . . . . . . . . . . . . . . . . . 3 . . . . . . . . . 2 6 6 3 15 6 5 . 2 142 33 19 Message Errors 47 | . . . . . . . . . . . . . . . . . . . . . . . . . . . . . . . 1 1 3 2 1 . 1 29 7 2 Matter Fused 43 | . . . . . . . . . . . . . . . . . . . . . . . . . . . . . . 2 1 1 3 . . . . 27 3 6 Heat Flow Errors 25 | . . . . . . . . . . . . . . . . . . . 1 . . . . . . . . . 1 1 1 1 2 . . . . 10 6 2 Energy Discharges 33 | . . . . . . . . . . . . . . . . . . . 1 . . . . . . . . . 1 1 3 . 3 2 1 . 1 15 5 . Parts Rejected 2 | . . . . . . . . . . . . . . . . . . . . . . . . . . . . . . . . . . . . . . 1 . 1 Data Loss (minor) 21 | . . . . . . . . . . . . . . . . . . . . . . . . . . . . . . 1 . . 1 . 3 . . 13 2 1 Data Loss (major) 5 | . . . . . . . . . . . . . . . . . . . . . . . . . . . . . . . . . . . . . . 3 . 2 Misfires 6 | . . . . . . . . . . . . . . . . . . . . . . . . . . . . . . . . . . . . . . 5 . 1 Alerts 2 | . . . . . . . . . . . . . . . . . . . . . . . . . . . . . . . . . . . . . . 2 . . Misdirections 6 | . . . . . . . . . . . . . . . . . . . . . . . . . . . . . . . . . . . . . . 6 . . Targeting Errors 41 | . . . . . . . . . . . . . . . . . . . 1 . . . . . . . . . . 1 . . 3 2 . . . 23 9 2 Weapon Failures 11 | . . . . . . . . . . . . . . . . . . . . . . . . . . . . . . . . . . . . . . 8 1 2 Overload Shots . | . . . . . . . . . . . . . . . . . . . . . . . . . . . . . . . . . . . . . . . . . Overflow Damage 6892 | . . . 3 7 5 . 111 42 35 86 69 10 . 36 48 112 . . 48 67 . 14 53 27 622 12 28 . 828 7 22 3 23 218 117 144 230 1546 1543 776 Projectiles 3383 | . . . . . . . 62 22 . 38 . 10 . . 39 112 . . 48 60 . 14 53 27 86 12 . . 542 7 22 3 23 174 117 105 230 896 442 239 Explosions 3423 | . . . 3 . 5 . 49 20 . 4 69 . . 36 9 . . . . 7 . . . . 536 . 28 . 286 . . . . 44 . 39 . 650 1101 537 Melee 86 | . . . . 7 . . . . 35 44 . . . . . . . . . . . . . . . . . . . . . . . . . . . . . . Knockbacks 6 | . . . 4 1 . . . . . . . . . . . 1 . . . . . . . . . . . . . . . . . . . . . . . . Impact 3 | . . . 2 1 . . . . . . . . . . . . . . . . . . . . . . . . . . . . . . . . . . . . Kinetic 3 | . . . 2 . . . . . . . . . . . . 1 . . . . . . . . . . . . . . . . . . . . . . . . Secondary . | . . . . . . . . . . . . . . . . . . . . . . . . . . . . . . . . . . . . . . . . . Self-Inflicted Damage 1191 | . 68 . . 37 . 65 49 . . . 69 . . . 2 . . . . 1 . 27 . . . . . . 237 . . . . 19 31 . . 100 485 1 Shots 80 | . 2 . . 1 . 2 4 . . . 1 . . . 1 . . . . 1 . 1 . . . . . . 5 . . . . 1 1 . . 2 57 1 Rammed 31 | . 4 3 14 3 2 2 . 1 . . . . . . . . . . 2 . . . . . . . . . . . . . . . . . . . . . Targets Rammed 35 | . 4 3 17 3 2 2 . 1 . . . . . . . . . . 3 . . . . . . . . . . . . . . . . . . . . . Kicked . | . . . . . . . . . . . . . . . . . . . . . . . . . . . . . . . . . . . . . . . . . Crushed 4 | . . . 3 . . . . . . . . . . . . . . . 1 . . . . . . . . . . . . . . . . . . . . . Highest Temperature 377 | . 176 18 165 213 150 335 354 234 19 222 57 354 57 312 221 377 162 . 245 333 132 252 145 42 140 48 44 . 330 196 306 247 264 270 365 192 288 368 258 144 Average Temperature 88 | . 61 12 51 78 69 115 100 78 9 70 24 120 28 78 66 122 54 . 105 71 79 68 52 18 56 11 11 . 71 103 145 136 118 80 150 79 93 93 60 32 Received Heat Transfer 3222 | . 156 . 180 72 . 384 189 213 . 129 39 36 . 123 165 215 27 . 361 20 . 4 24 56 203 . 6 . 73 . 9 . . 9 . . 20 337 156 16 Effects 27 | . . . . . . 4 1 1 . . . 4 . . . 3 . . 1 3 . . . . . . . . 2 . . . . 3 2 . 2 1 . . Energy Bleed 9 | . . . . . . . 1 . . . . 1 . . . 1 . . 1 . . . . . . . . . 2 . . . . . 2 . . 1 . . Interference 15 | . . . . . . 3 . 1 . . . 2 . . . 1 . . . 3 . . . . . . . . . . . . . 3 . . 2 . . . Matter Decay 1 | . . . . . . . . . . . . 1 . . . . . . . . . . . . . . . . . . . . . . . . . . . . Short Circuit 1 | . . . . . . 1 . . . . . . . . . . . . . . . . . . . . . . . . . . . . . . . . . . Damage (minor) 1 | . . . . . . . . . . . . . . . . 1 . . . . . . . . . . . . . . . . . . . . . . . . Siege Activations 7 | . . . . . . . . . . . . . . . . . . . 7 . . . . . . . . . . . . . . . . . . . . . Total Turns 154 | . . . . . . . . . . . . . . . . . . . 154 . . . . . . . . . . . . . . . . . . . . . Longest Duration 51 | . . . . . . . . . . . . . . . . . . . 51 . . . . . . . . . . . . . . . . . . . . . Robots Corrupted 291 | . . . . . 1 . . 2 . 2 . 1 . 3 5 4 1 . 4 4 . 2 11 3 10 1 2 . 34 . 2 . 5 10 5 4 14 67 81 13 Combat Hostiles 265 | . . . . . 1 . . 2 . 2 . 1 . 3 5 3 1 . 3 4 . 2 10 3 10 . 2 . 30 . 2 . 5 10 4 3 14 59 74 12 Parts Fried 676 | . 1 . . . 3 . . 7 . 10 . 5 . 8 17 18 1 . 15 4 . 5 15 9 7 3 8 . 84 . 5 . 12 30 5 7 38 151 182 26 Impact Corruptions 1 | . . . . 1 . . . . . . . . . . . . . . . . . . . . . . . . . . . . . . . . . . . . Robots Melted 6 | . . . . . . . . . . . . . . . . . . . . 1 . . . . . . . . . . . . . . . . . 2 3 . Combat Hostiles 6 | . . . . . . . . . . . . . . . . . . . . 1 . . . . . . . . . . . . . . . . . 2 3 . Parts Melted 93 | . . . . . . . 7 1 . . . . . . . 1 . 1 3 2 . . . . . . . . 6 5 . 1 . 1 7 4 11 16 23 4 Heat Transferred 30449 | . 200 . 350 87 . 494 2227 796 . 150 . . . 150 250 387 . 444 726 400 . 800 150 50 300 50 100 . 3100 400 . 518 . 62 703 259 1258 7458 5572 3008 Parts Sabotaged 2 | . . . . . . . . . . . . . . . . . . . . . . . . . . . . . . . . . . . . . . . 2 . Parts Stolen . | . . . . . . . . . . . . . . . . . . . . . . . . . . . . . . . . . . . . . . . . . Parts Stripped . | . . . . . . . . . . . . . . . . . . . . . . . . . . . . . . . . . . . . . . . . . Power Chain Reactions 56 | . 2 . 4 . . . . 3 . 2 . . . 2 2 . . . 1 . . . 1 . 2 . 1 . 3 . . . . . . . . 4 23 6 Missiles Intercepted . | . . . . . . . . . . . . . . . . . . . . . . . . . . . . . . . . . . . . . . . . . Alert | -11 -10 -10 -9 -9 -9 -8 -8 -7 -7 -7 -7 -7 -7 -6 -6 -6 -6 -6 -6 -5 -5 -5 -5 -5 -5 -4 -4 -4 -4 -4 -4 -4 -3 -3 -3 -2 -2 -2 -1 -1 ------- Run | Scr Mat Min Mat Min Exi Min Mat Fac Was Fac Low Low Dat Pro Fac Ext Cet Arc Hub Fac Was Fac Upp Upp War Pro Fac Was Fac Upp Upp Zhi Pro Res Tes Res Qua Sec Acc Com Peak Influence 7284 | . 354 73 823 565 . 105 626 704 216 893 . . . . 567 616 868 391 1255 759 273 544 . . . . 602 140 2659 . . . . 428 465 617 539 3772 7284 5298 Initial 4661 | . . 73 . 320 . . 3 216 199 . . . . . . 277 259 267 136 385 265 191 . . . . 56 140 . . . . . . 149 194 316 109 2263 4661 Average 844 | . 193 39 413 430 . 46 262 459 99 656 . . . . 303 389 554 366 756 478 272 351 . . . . 132 91 757 . . . . 211 306 453 207 2297 4789 5052 Maximum Alert Level 5 | . 1 . 3 2 . . 2 3 1 3 . . . . 2 2 3 1 4 3 1 2 . . . . 2 . 5 . . . . 2 2 2 2 5 5 5 Low Security (%) 28 | 100 62 100 37 . . 100 52 . 56 13 . . . . 31 . . . 2 . . 3 . . . . 76 100 27 . . . . 38 16 7 58 6 . . Level 1 26 | . 37 . 16 36 . . 10 39 43 3 . . . . 45 56 34 100 4 39 100 63 . . . . 16 . 30 . . . . 55 69 20 31 9 . . Level 2 17 | . . . 11 63 . . 37 59 . 11 . . . . 22 43 25 . 21 50 . 33 . . . . 6 . 4 . . . . 6 13 72 9 4 . . Level 3 10 | . . . 34 . . . . 1 . 72 . . . . . . 40 . 59 9 . . . . . . . . 9 . . . . . . . . 8 . . Level 4 2 | . . . . . . . . . . . . . . . . . . . 12 . . . . . . . . . 8 . . . . . . . . 12 . . Level 5 2 | . . . . . . . . . . . . . . . . . . . . . . . . . . . . . 11 . . . . . . . . . 13 27 High Security 11 | . . . . . . . . . . . . . . . . . . . . . . . . . . . . . 7 . . . . . . . . 58 86 72 Max Security . | . . . . . . . . . . . . . . . . . . . . . . . . . . . . . . . . . . . . . . . . . Sterilizations 2 | . . . . . . . . . . . . . . . . . . . . . . . . . . . . . . . . . . . . . . 1 1 . Squads Dispatched 200 | . 3 1 9 . . 1 4 6 . 8 . . . . 3 4 . . 10 6 . 6 . . . . 1 . 29 . . . . 7 2 . 7 42 37 14 Investigation 23 | . 3 1 3 . . . 1 2 . 4 . . . . . 1 . . . . . 1 . . . . . . 2 . . . . 4 . . 1 . . . Extermination 27 | . . . . . . . . 1 . 2 . . . . 1 . . . 4 1 . 2 . . . . 1 . 5 . . . . . 2 . 3 5 . . Reinforcement 40 | . . . 6 . . 1 . 3 . 2 . . . . 1 3 . . 2 1 . 1 . . . . . . 8 . . . . 3 . . 1 6 2 . Assault 95 | . . . . . . . . . . . . . . . 1 . . . 3 1 . . . . . . . . 14 . . . . . . . 1 28 33 14 Garrison 10 | . . . . . . . 3 . . . . . . . . . . . 1 3 . 2 . . . . . . . . . . . . . . 1 . . . Intercept 5 | . . . . . . . . . . . . . . . . . . . . . . . . . . . . . . . . . . . . . . 3 2 . Construction Impeded 15 | . . . 1 . . 1 . 2 . . . . . . 1 1 . . . 1 . . . . . . . . 4 . . . . 1 . . . 2 1 . Haulers Reinforced 9 | . . . . . . . . 1 . . . . . . . . . . 2 . . . . . . . . . 1 . . . . 2 . . . 2 1 . Stealth | -11 -10 -10 -9 -9 -9 -8 -8 -7 -7 -7 -7 -7 -7 -6 -6 -6 -6 -6 -6 -5 -5 -5 -5 -5 -5 -4 -4 -4 -4 -4 -4 -4 -3 -3 -3 -2 -2 -2 -1 -1 --------- Run | Scr Mat Min Mat Min Exi Min Mat Fac Was Fac Low Low Dat Pro Fac Ext Cet Arc Hub Fac Was Fac Upp Upp War Pro Fac Was Fac Upp Upp Zhi Pro Res Tes Res Qua Sec Acc Com Distress Signals 39 | . . . 5 . . . 1 2 . . 1 . . . . 2 2 . 2 . . . . . 1 . . . 3 . . . . 1 2 5 1 2 3 6 Communications Jammed . | . . . . . . . . . . . . . . . . . . . . . . . . . . . . . . . . . . . . . . . . . Distress Signals . | . . . . . . . . . . . . . . . . . . . . . . . . . . . . . . . . . . . . . . . . . Times Spotted 1185 | . 17 3 52 11 68 9 22 23 4 17 9 3 . 13 20 34 19 9 54 10 6 9 13 7 56 2 7 2 95 2 3 . 3 22 14 9 23 206 222 87 Peak Tracking Total 28 | . 5 3 4 5 9 4 5 6 2 3 5 1 . 4 5 5 8 1 5 4 3 2 5 4 20 1 4 1 8 2 3 . 5 5 4 4 3 28 25 27 Tactical Retreats 79 | . 2 . . 1 18 1 1 1 . . . 1 . . 2 2 . . 7 . . . 2 . 1 1 1 . 9 . . . . 2 . 1 3 7 10 6 Traps | -11 -10 -10 -9 -9 -9 -8 -8 -7 -7 -7 -7 -7 -7 -6 -6 -6 -6 -6 -6 -5 -5 -5 -5 -5 -5 -4 -4 -4 -4 -4 -4 -4 -3 -3 -3 -2 -2 -2 -1 -1 ------- Run | Scr Mat Min Mat Min Exi Min Mat Fac Was Fac Low Low Dat Pro Fac Ext Cet Arc Hub Fac Was Fac Upp Upp War Pro Fac Was Fac Upp Upp Zhi Pro Res Tes Res Qua Sec Acc Com Traps Triggered 28 | . . . 1 . . . . 1 . 1 . . . . 2 2 . . . 4 . 5 . . . . 1 . 4 . . . . . 3 . 1 2 1 . Indirectly 5 | . . . . . . . . . . . . . . . 2 . . . . 2 . . . . . . . . . . . . . . . . . . 1 . Trap Hack Attempts 53 | . . . . 53 . . . . . . . . . . . . . . . . . . . . . . . . . . . . . . . . . . . . Triggered . | . . . . . . . . . . . . . . . . . . . . . . . . . . . . . . . . . . . . . . . . . Disarmed . | . . . . . . . . . . . . . . . . . . . . . . . . . . . . . . . . . . . . . . . . . Reprogrammed 5 | . . . . 3 . . . . . . . . . . . . . . . . . . . . . . . . . . . . . . 2 . . . . . Reused 5 | . . . . . 4 . . . . . . . . . . . . . . . . . . . . . . . . . . . . . 1 . . . . . Traps Extracted 1 | . . . . 1 . . . . . . . . . . . . . . . . . . . . . . . . . . . . . . . . . . . . Installed 4 | . . . . . 4 . . . . . . . . . . . . . . . . . . . . . . . . . . . . . . . . . . . Triggered 30 | . 1 . 1 . . . . . . . 1 . . . . 1 . . . . . . . . 20 1 . . . . . . . . 1 . . 3 . 1 Machines | -11 -10 -10 -9 -9 -9 -8 -8 -7 -7 -7 -7 -7 -7 -6 -6 -6 -6 -6 -6 -5 -5 -5 -5 -5 -5 -4 -4 -4 -4 -4 -4 -4 -3 -3 -3 -2 -2 -2 -1 -1 ---------- Run | Scr Mat Min Mat Min Exi Min Mat Fac Was Fac Low Low Dat Pro Fac Ext Cet Arc Hub Fac Was Fac Upp Upp War Pro Fac Was Fac Upp Upp Zhi Pro Res Tes Res Qua Sec Acc Com Machines Disabled 154 | . 2 . 7 3 10 . 2 2 . 2 . 1 . . 11 2 3 . 8 4 . 2 . . . . . . 29 . . . . . 4 2 15 31 12 2 Max in Single Turn 6 | . 1 . 3 2 2 . 1 1 . 1 . 1 . . 6 1 1 . 1 2 . 1 . . . . . . 6 . . . . . 1 1 2 3 2 1 Garrison Access 12 | . . . . . . . . 1 . 2 . . . . 1 . . . . 1 . 1 . . . . . . . . . . . . 1 3 1 . 1 . Network Hub 4 | . . . . . . . . . . . . . . . . . . . 4 . . . . . . . . . . . . . . . . . . . . . Machines Sabotaged . | . . . . . . . . . . . . . . . . . . . . . . . . . . . . . . . . . . . . . . . . . Garrisons Compromised . | . . . . . . . . . . . . . . . . . . . . . . . . . . . . . . . . . . . . . . . . . Overloaded Fab Kills . | . . . . . . . . . . . . . . . . . . . . . . . . . . . . . . . . . . . . . . . . . Fab Network Shutdowns 1 | . . . . . . . . . . . . . . . . . . . . . . . . . . . 1 . . . . . . . . . . . . . Hacking | -11 -10 -10 -9 -9 -9 -8 -8 -7 -7 -7 -7 -7 -7 -6 -6 -6 -6 -6 -6 -5 -5 -5 -5 -5 -5 -4 -4 -4 -4 -4 -4 -4 -3 -3 -3 -2 -2 -2 -1 -1 --------- Run | Scr Mat Min Mat Min Exi Min Mat Fac Was Fac Low Low Dat Pro Fac Ext Cet Arc Hub Fac Was Fac Upp Upp War Pro Fac Was Fac Upp Upp Zhi Pro Res Tes Res Qua Sec Acc Com Machines Accessed 138 | . 3 1 9 2 2 . 4 9 . 5 2 3 4 . 3 7 3 . 10 4 . 9 2 . 1 . 2 . 14 . . 6 . 7 8 . 13 3 1 1 Terminals 69 | . 2 . 5 . . . 1 4 . . . . . . 2 7 3 . 9 1 . 5 . . . . . . 7 . . . . 3 6 . 10 3 . 1 Fabricators 12 | . . . . . . . . 2 . 1 . . . . . . . . . 1 . 1 . . . . 1 . 3 . . . . 2 1 . . . . . Repair Stations 6 | . . . 2 . . . 2 . . . . . . . . . . . . 1 . . . . . . . . 1 . . . . . . . . . . . Recycling Units 12 | . 1 . 2 . . . 1 2 . 2 . . . . . . . . . . . 1 . . . . . . 1 . . . . 1 . . . . 1 . Scanalyzers 5 | . . . . . . . . . . . . . . . . . . . . . . . . . . . . . 2 . . . . 1 . . 2 . . . Garrison Access 11 | . . . . . . . . 1 . 2 . . . . 1 . . . 1 1 . 2 . . . . 1 . . . . . . . 1 . 1 . . . Total Hacks 580 | . 10 1 28 2 2 . 11 20 . 10 10 3 27 . 6 23 7 . 48 19 . 68 7 . 1 . 10 . 96 . . 19 . 33 42 . 51 19 6 1 Successful 323 | . 4 1 21 2 2 . 10 9 . 3 10 3 27 . 2 13 3 . 26 10 . 22 7 . 1 . 7 . 45 . . 19 . 16 28 . 25 6 . 1 Failed 257 | . 6 . 7 . . . 1 11 . 7 . . . . 4 10 4 . 22 9 . 46 . . . . 3 . 51 . . . . 17 14 . 26 13 6 . Catastrophic 44 | . 1 . . . . . . 1 . . . . . . . 4 1 . 6 2 . 9 . . . . 1 . 6 . . . . 3 1 . 4 2 3 . Database Lockouts . | . . . . . . . . . . . . . . . . . . . . . . . . . . . . . . . . . . . . . . . . . Manual 186 | . 6 . 11 . 1 . 4 6 . 6 . . . . 2 12 1 . 15 8 . 29 . . 1 . 5 . 35 . . . . 12 11 . 8 13 . . Terminals 334 | . 9 . 16 . . . 5 11 . . . . . . 5 23 7 . 45 6 . 37 . . . . . . 53 . . . . 19 35 . 43 19 . 1 Fabricators 77 | . . . . . . . . 4 . 2 . . . . . . . . . 7 . 14 . . . . 8 . 27 . . . . 10 5 . . . . . Repair Stations 24 | . . . 10 . . . 4 . . . . . . . . . . . . 4 . . . . . . . . 6 . . . . . . . . . . . Recycling Units 26 | . 1 . 2 . . . 2 4 . 6 . . . . . . . . . . . 1 . . . . . . 1 . . . . 3 . . . . 6 . Scanalyzers 17 | . . . . . . . . . . . . . . . . . . . . . . . . . . . . . 9 . . . . 1 . . 7 . . . Garrison Access 30 | . . . . . . . . 1 . 2 . . . . 1 . . . 3 2 . 16 . . . . 2 . . . . . . . 2 . 1 . . . Terminal Hacks 192 | . 3 1 7 2 2 . 3 4 . . 10 3 27 . 2 11 3 . 17 3 . 7 7 . 1 . . . 15 . . 19 . 5 19 . 16 4 . 1 Record 37 | . . . . . 1 . . . . . 9 1 11 . . . 2 . . . . . 6 . . . . . . . . 7 . . . . . . . . Part Schematic 15 | . . . . . . . . . . . . . 8 . . . . . 1 . . 1 . . . . . . 1 . . 4 . . . . . . . . Robot Schematic 5 | . . . . . . . . . . . . . 5 . . . . . . . . . . . . . . . . . . . . . . . . . . . Robot Analysis 10 | . 1 . 1 . . . 1 . . . . . . . . . . . 1 . . . . . . . . . . . . 4 . . 1 . 1 . . . Prototype ID Bank 28 | . . . 2 . . . 1 1 . . . . 3 . 1 2 . . . . . 2 . . . . . . 1 . . 4 . 1 4 . 5 1 . . Open Door 10 | . . 1 . 2 . . . . . . 1 2 . . . 1 1 . . . . . 1 . 1 . . . . . . . . . . . . . . . Branch Access Points 5 | . . . 1 . . . . . . . . . . . . . . . . 1 . 1 . . . . . . 1 . . . . 1 . . . . . . Emergency Access Points 2 | . . . . . . . . . . . . . . . . . . . 1 . . . . . . . . . 1 . . . . . . . . . . . Terminal Index 1 | . . . . . . . . . . . . . . . . . . . . . . . . . . . . . 1 . . . . . . . . . . . Fabricator Index 2 | . . . . . . . . . . . . . . . . . . . . . . 1 . . . . . . 1 . . . . . . . . . . . Repair Station Index 1 | . . . . . . . . . . . . . . . . . . . . . . . . . . . . . 1 . . . . . . . . . . . Alert Level 20 | . . . 1 . . . 1 . . . . . . . . 1 . . 3 1 . 1 . . . . . . 3 . . . . 1 3 . 4 1 . . Unreport Threat 11 | . . . . . . . . . . . . . . . . 2 . . 3 . . . . . . . . . 1 . . . . . 1 . 4 . . . Locate Traps 12 | . 1 . . . . . . 2 . . . . . . . 1 . . 1 . . . . . . . . . 1 . . . . 2 3 . 1 . . . Reprogram Traps 2 | . . . . . . . . . . . . . . . . . . . . . . . . . . . . . . . . . . . 2 . . . . . Dispatch Records 2 | . . . . . . . . . . . . . . . . . . . 1 . . . . . . . . . 1 . . . . . . . . . . . Patrol Status 3 | . 1 . 1 . . . . . . . . . . . . . . . 1 . . . . . . . . . . . . . . . . . . . . . Investigation Status 1 | . . . . . . . . . . . . . . . . 1 . . . . . . . . . . . . . . . . . . . . . . . . Extermination Status 1 | . . . . . . . . . . . . . . . . . . . . . . . . . . . . . . . . . . . . . 1 . . . Assault Status 2 | . . . . . . . . . . . . . . . . . . . 1 . . . . . . . . . 1 . . . . . . . . . . . Recall Extermination 1 | . . . . . . . . 1 . . . . . . . . . . . . . . . . . . . . . . . . . . . . . . . . Recall Reinforcements 3 | . . . . . . . . . . . . . . . . 1 . . . . . . . . . . . . . . . . . . . . . 2 . . Recall Assault 2 | . . . . . . . . . . . . . . . . . . . 1 . . . . . . . . . 1 . . . . . . . . . . . Hauler Manifests 9 | . . . 1 . . . . . . . . . . . 1 2 . . 2 1 . 1 . . . . . . . . . . . . 1 . . . . . Registered Prototypes 1 | . . . . . . . . . . . . . . . . . . . . . . . . . . . . . . . . . . . 1 . . . . . Zone Layout 3 | . . . . . . . . . . . . . . . . . . . 1 . . . . . . . . . . . . . . . 2 . . . . . EX-Prototype ID Bank 1 | . . . . . 1 . . . . . . . . . . . . . . . . . . . . . . . . . . . . . . . . . . . Protovariant Controls 1 | . . . . . . . . . . . . . . . . . . . . . . . . . . . . . . . . . . . 1 . . . . . Disengage Seal 1 | . . . . . . . . . . . . . . . . . . . . . . . . . . . . . . . . . . . . . . . . 1 Fabricator Hacks 21 | . . . . . . . . . . . . . . . . . . . . 2 . 3 . . . . 4 . 7 . . . . 3 2 . . . . . Load Schematic 12 | . . . . . . . . . . . . . . . . . . . . 1 . 2 . . . . 2 . 4 . . . . 2 1 . . . . . Build 9 | . . . . . . . . . . . . . . . . . . . . 1 . 1 . . . . 2 . 3 . . . . 1 1 . . . . . Repair Station Hacks 22 | . . . 10 . . . 4 . . . . . . . . . . . . 4 . . . . . . . . 4 . . . . . . . . . . . Scan Component 11 | . . . 5 . . . 2 . . . . . . . . . . . . 2 . . . . . . . . 2 . . . . . . . . . . . Repair 11 | . . . 5 . . . 2 . . . . . . . . . . . . 2 . . . . . . . . 2 . . . . . . . . . . . Recycling Unit Hacks 5 | . . . . . . . 1 1 . . . . . . . . . . . . . 1 . . . . . . 1 . . . . 1 . . . . . . Retrieve Components 5 | . . . . . . . 1 1 . . . . . . . . . . . . . 1 . . . . . . 1 . . . . 1 . . . . . . Scanalyzer 11 | . . . . . . . . . . . . . . . . . . . . . . . . . . . . . 6 . . . . 1 . . 4 . . . Insert Component 8 | . . . . . . . . . . . . . . . . . . . . . . . . . . . . . 3 . . . . 1 . . 4 . . . Analyze 3 | . . . . . . . . . . . . . . . . . . . . . . . . . . . . . 3 . . . . . . . . . . . Garrison Access Hacks 4 | . . . . . . . . 1 . . . . . . . . . . . . . 1 . . . . . . . . . . . . 1 . 1 . . . Seal Access 4 | . . . . . . . . 1 . . . . . . . . . . . . . 1 . . . . . . . . . . . . 1 . 1 . . . Unauthorized Hacks 68 | . 1 . 4 . . . 2 3 . 3 . . . . . 2 . . 9 1 . 10 . . . . 3 . 12 . . . . 6 6 . 4 2 . . Terminals 35 | . . . 2 . . . 1 1 . . . . . . . 2 . . 7 . . 3 . . . . . . 4 . . . . 5 4 . 4 2 . . Track 11 | . . . 1 . . . 1 . . . . . . . . . . . 4 . . 1 . . . . . . . . . . . 2 1 . 1 . . . Assimilate 1 | . . . . . . . . . . . . . . . . . . . . . . . . . . . . . 1 . . . . . . . . . . . Botnet 21 | . . . 1 . . . . 1 . . . . . . . 2 . . 3 . . 2 . . . . . . 3 . . . . 2 2 . 3 2 . . Disrupt 1 | . . . . . . . . . . . . . . . . . . . . . . . . . . . . . . . . . . . 1 . . . . . Search 1 | . . . . . . . . . . . . . . . . . . . . . . . . . . . . . . . . . . 1 . . . . . . Fabricators 17 | . . . . . . . . 1 . . . . . . . . . . . 1 . 2 . . . . 2 . 8 . . . . 1 2 . . . . . Report 1 | . . . . . . . . . . . . . . . . . . . . . . . . . . . . . 1 . . . . . . . . . . . Prioritize 7 | . . . . . . . . . . . . . . . . . . . . . . 1 . . . . 1 . 3 . . . . 1 1 . . . . . Siphon 6 | . . . . . . . . . . . . . . . . . . . . 1 . 1 . . . . 1 . 2 . . . . . 1 . . . . . Haulers 3 | . . . . . . . . 1 . . . . . . . . . . . . . . . . . . . . 2 . . . . . . . . . . . Repair Stations . | . . . . . . . . . . . . . . . . . . . . . . . . . . . . . . . . . . . . . . . . . Recycling Units 6 | . 1 . 2 . . . 1 1 . 1 . . . . . . . . . . . . . . . . . . . . . . . . . . . . . . Tunnel 6 | . 1 . 2 . . . 1 1 . 1 . . . . . . . . . . . . . . . . . . . . . . . . . . . . . . Scanalyzers . | . . . . . . . . . . . . . . . . . . . . . . . . . . . . . . . . . . . . . . . . . Garrison Access 10 | . . . . . . . . . . 2 . . . . . . . . 2 . . 5 . . . . 1 . . . . . . . . . . . . . Broadcast 1 | . . . . . . . . . . . . . . . . . . . 1 . . . . . . . . . . . . . . . . . . . . . Reprogram 5 | . . . . . . . . . . . . . . . . . . . 1 . . 3 . . . . 1 . . . . . . . . . . . . . Watchers 2 | . . . . . . . . . . . . . . . . . . . . . . 2 . . . . . . . . . . . . . . . . . . Jam 2 | . . . . . . . . . . 2 . . . . . . . . . . . . . . . . . . . . . . . . . . . . . . Data Cores Recovered 5 | . . . 1 . . . . . . . . . . . . 1 . . 1 . . . . . . . . . . . . . . . . . 2 . . . Used 1 | . . . . . . . . . . . . . . . . . . . . . . . . . . . . . . . . . . . . . 1 . . . Hacking Detections 87 | . 2 . 6 . . . 1 7 . 3 . . . . 3 7 1 . 9 3 . 7 . . . . 2 . 11 . . . . 6 5 . 9 3 1 1 Full Trace Events 5 | . 1 . . . . . . 1 . . . . . . . . . . . . . 1 . . . . . . 1 . . . . 1 . . . . . . Feedback Events 1 | . . . . . . . . . . . . . . . . . . . . . . . . . . . . . . . . . . 1 . . . . . . Corruption 1 | . . . . . . . . . . . . . . . . . . . . . . . . . . . . . . . . . . 1 . . . . . . Feedback Blocked . | . . . . . . . . . . . . . . . . . . . . . . . . . . . . . . . . . . . . . . . . . Robot Schematics Acquired 5 | . . . . . . . . . . . . . 5 . . . . . . . . . . . . . . . . . . . . . . . . . . . Robots Built 3 | . . . . . . . . . . . . . . . . . . . . . . . . . . . 2 . 1 . . . . . . . . . . . Matter 476 | . . . . . . . . . . . . . . . . . . . . . . . . . . . 238 . 238 . . . . . . . . . . . Time 168 | . . . . . . . . . . . . . . . . . . . . . . . . . . . 84 . 84 . . . . . . . . . . . Total Robot Build Rating 18 | . . . . . . . . . . . . . . . . . . . . . . . . . . . 12 . 6 . . . . . . . . . . . Part Schematics Acquired 17 | . . . . . . . . . . . . . 8 . . . . . 1 . . 1 . . . . . . 3 . . 4 . . . . . . . . Parts Built 8 | . . . . . . . . . . . . . . . . . . . . 1 . 1 . . . . 1 . 3 . . . . 1 1 . . . . . Matter 1861 | . . . . . . . . . . . . . . . . . . . . 213 . 213 . . . . 213 . 592 . . . . 417 213 . . . . . Time 575 | . . . . . . . . . . . . . . . . . . . . 76 . 76 . . . . 76 . 84 . . . . 111 152 . . . . . Total Part Build Rating 52 | . . . . . . . . . . . . . . . . . . . . 5 . 5 . . . . 5 . 23 . . . . 9 5 . . . . . Parts Repaired 11 | . . . 5 . . . 2 . . . . . . . . . . . . 2 . . . . . . . . 2 . . . . . . . . . . . Time 342 | . . . 161 . . . 64 . . . . . . . . . . . . 70 . . . . . . . . 47 . . . . . . . . . . . Parts Recycled . | . . . . . . . . . . . . . . . . . . . . . . . . . . . . . . . . . . . . . . . . . Recycled Matter . | . . . . . . . . . . . . . . . . . . . . . . . . . . . . . . . . . . . . . . . . . Retrieved Matter . | . . . . . . . . . . . . . . . . . . . . . . . . . . . . . . . . . . . . . . . . . Retrieved Components 26 | . . . . . . . 4 9 . . . . . . . . . . . . . 9 . . . . . . 1 . . . . 3 . . . . . . Parts Scanalyzed 2 | . . . . . . . . . . . . . . . . . . . . . . . . . . . . . 2 . . . . . . . . . . . Part Schematics Acquired 2 | . . . . . . . . . . . . . . . . . . . . . . . . . . . . . 2 . . . . . . . . . . . Parts Damaged . | . . . . . . . . . . . . . . . . . . . . . . . . . . . . . . . . . . . . . . . . . Bothacking | -11 -10 -10 -9 -9 -9 -8 -8 -7 -7 -7 -7 -7 -7 -6 -6 -6 -6 -6 -6 -5 -5 -5 -5 -5 -5 -4 -4 -4 -4 -4 -4 -4 -3 -3 -3 -2 -2 -2 -1 -1 ------------ Run | Scr Mat Min Mat Min Exi Min Mat Fac Was Fac Low Low Dat Pro Fac Ext Cet Arc Hub Fac Was Fac Upp Upp War Pro Fac Was Fac Upp Upp Zhi Pro Res Tes Res Qua Sec Acc Com Used RIF Installer . | . . . . . . . . . . . . . . . . . . . . . . . . . . . . . . . . . . . . . . . . . Robots Hacked 24 | . . . . 1 5 1 . 1 . . . . 1 1 . 1 2 . 1 2 . . . . 2 . . . . . . . . 2 . 1 2 1 . . Non-combat 8 | . . . . 1 3 . . 1 . . . . . . . . . . . 2 . . . . . . . . . . . . . . . 1 . . . . Combat 16 | . . . . . 2 1 . . . . . . 1 1 . 1 2 . 1 . . . . . 2 . . . . . . . . 2 . . 2 1 . . Robot Hacks Applied 25 | . . . . 1 5 1 . 1 . . . . 1 1 . 2 2 . 1 2 . . . . 2 . . . . . . . . 2 . 1 2 1 . . parse_system 22 | . . . . 1 5 1 . . . . . . 1 1 . 2 2 . 1 . . . . . 2 . . . . . . . . 2 . 1 2 1 . . find_chute 3 | . . . . . . . . 1 . . . . . . . . . . . 2 . . . . . . . . . . . . . . . . . . . . Relay Couplers Released 20 | . . . . . . . . . . . . . . . . . . . . 2 . 4 . . . . . . . . . . . . . 12 . . 2 . Machine Destruction 9 | . . . . . . . . . . . . . . . . . . . . 2 . . . . . . . . . . . . . . . 5 . . 2 . Programmers 11 | . . . . . . . . . . . . . . . . . . . . . . 4 . . . . . . . . . . . . . 7 . . . . Robots Rewired 23 | . . . . . . . . . . . . . . . . 17 . . . . . . . . . . 1 2 . . . . 2 . . . . 1 . . Allies Hacked 1 | . . . . . . . . . . . . . . . . . . . . . . . . . . . . . . . . . . . . . . 1 . . Hacks Repelled . | . . . . . . . . . . . . . . . . . . . . . . . . . . . . . . . . . . . . . . . . . Allies | -11 -10 -10 -9 -9 -9 -8 -8 -7 -7 -7 -7 -7 -7 -6 -6 -6 -6 -6 -6 -5 -5 -5 -5 -5 -5 -4 -4 -4 -4 -4 -4 -4 -3 -3 -3 -2 -2 -2 -1 -1 -------- Run | Scr Mat Min Mat Min Exi Min Mat Fac Was Fac Low Low Dat Pro Fac Ext Cet Arc Hub Fac Was Fac Upp Upp War Pro Fac Was Fac Upp Upp Zhi Pro Res Tes Res Qua Sec Acc Com Total Allies 68 | . . 3 . . . . . . 19 . . . . 1 . 26 5 . 1 . . 4 . . . . 3 2 1 . . . 2 . . . . 1 . . Largest Group 19 | . . 3 3 . . . . . 19 17 . . . 1 . 14 17 11 6 . . 3 . . . . 2 4 4 . . . 2 1 . . . 1 . . Highest-Rated Group 935 | . . 40 40 . . . . . 487 417 . . . 94 . 543 935 707 384 . . 187 . . . . 92 326 281 . . . 84 46 . . . 58 . . Highest-Rated Ally 156 | . . 16 16 . . . . . 35 33 . . . 94 . 156 147 141 94 . . 91 . . . . 47 129 129 . . . 46 46 . . . 58 . . Total Orders 34 | . . . . 1 17 . . . . . . . . . . . . 1 3 . . 4 . . . . . 4 . . . . . . . 3 . 1 . . STAY 9 | . . . . . 5 . . . . . . . . . . . . 1 1 . . . . . . . . 2 . . . . . . . . . . . . ROAM 7 | . . . . . 5 . . . . . . . . . . . . . 1 . . . . . . . . . . . . . . . . . . 1 . . FOLLOW 4 | . . . . . 1 . . . . . . . . . . . . . 1 . . . . . . . . 2 . . . . . . . . . . . . EXPLORE 8 | . . . . . 2 . . . . . . . . . . . . . . . . 4 . . . . . . . . . . . . . 2 . . . . RETURN 6 | . . . . 1 4 . . . . . . . . . . . . . . . . . . . . . . . . . . . . . . 1 . . . . Ally Attacks 552 | . . 1 42 . . . . . 11 72 . . . 10 . 91 127 23 76 . . 27 . . . . 9 31 24 . . . 1 1 . . . 6 . . Total Damage 10887 | . . 14 496 . . . . . 207 898 . . . 330 . 2206 2928 593 1728 . . 692 . . . . 90 143 381 . . . 17 13 . . . 151 . . Kills 89 | . . . 7 . . . . . . 11 . . . 4 . 20 16 4 19 . . 5 . . . . . . 3 . . . . . . . . . . . Allies Corrupted 2 | . . . . . . . . . . . . . . . . . . . . . . . . . . . . . 1 . . . . . . . . 1 . . Allies Melted 1 | . . . . . . . . . . . . . . . . . . . . . . . . . . . . . . . . . . . . . 1 . . . Intel | -11 -10 -10 -9 -9 -9 -8 -8 -7 -7 -7 -7 -7 -7 -6 -6 -6 -6 -6 -6 -5 -5 -5 -5 -5 -5 -4 -4 -4 -4 -4 -4 -4 -3 -3 -3 -2 -2 -2 -1 -1 ------- Run | Scr Mat Min Mat Min Exi Min Mat Fac Was Fac Low Low Dat Pro Fac Ext Cet Arc Hub Fac Was Fac Upp Upp War Pro Fac Was Fac Upp Upp Zhi Pro Res Tes Res Qua Sec Acc Com Robot Analysis Total 10 | . 1 . 1 . . . 1 . . . . . . . . . . . 1 . . . . . . . . . . . . 4 . . 1 . 1 . . . Derelict Logs Recovered 11 | . . 1 . 1 . . . . . . 1 3 . 1 . . . . . . . . 1 1 . . . . . 1 1 . . . . . . . . . Drone Launches 36 | . . . . 2 25 . . . . . . . . . . . . . . . . 5 . . . . . . . . . . . . . 4 . . . . Drone Recoveries 17 | . . . . 2 9 . . . . . . . . . . . . . . . . 4 . . . . . . . . . . . . . 2 . . . . Exploration | -11 -10 -10 -9 -9 -9 -8 -8 -7 -7 -7 -7 -7 -7 -6 -6 -6 -6 -6 -6 -5 -5 -5 -5 -5 -5 -4 -4 -4 -4 -4 -4 -4 -3 -3 -3 -2 -2 -2 -1 -1 ------------- Run | Scr Mat Min Mat Min Exi Min Mat Fac Was Fac Low Low Dat Pro Fac Ext Cet Arc Hub Fac Was Fac Upp Upp War Pro Fac Was Fac Upp Upp Zhi Pro Res Tes Res Qua Sec Acc Com Turns Passed 50940 | 82 558 934 2353 1151 3137 1338 823 889 910 1210 1751 2071 128 2021 753 1458 412 200 2215 664 239 1391 1423 1058 1816 691 425 612 2983 425 502 321 595 1238 1016 1643 3683 3732 1515 574 Spaces Moved 26063 | 47 272 569 1042 552 1330 634 342 399 541 687 1073 1234 75 998 397 710 217 84 974 280 95 695 798 590 902 348 158 309 1535 289 349 174 369 766 572 1100 1566 2060 653 278 Core 7 | 7 . . . . . . . . . . . . . . . . . . . . . . . . . . . . . . . . . . . . . . . . Treads 5085 | 40 272 569 1042 552 1330 58 125 1 . . . . . 880 . . . . 159 . . . . . . . 57 . . . . . . . . . . . . . Legs 6704 | . . . . . . 486 216 . . . . . . . . . . . . . . . . . . . . . . . . . . . 345 1100 1566 2060 653 278 Wheels 14267 | . . . . . . 90 1 398 541 687 1073 1234 75 118 397 710 217 84 815 280 95 695 798 590 902 348 101 309 1535 289 349 174 369 766 227 . . . . . Hover . | . . . . . . . . . . . . . . . . . . . . . . . . . . . . . . . . . . . . . . . . . Flight . | . . . . . . . . . . . . . . . . . . . . . . . . . . . . . . . . . . . . . . . . . Fastest Speed 50 | 50 160 160 160 180 180 150 150 130 130 150 160 140 160 160 160 160 170 170 160 170 170 160 170 160 160 160 180 160 140 140 140 140 140 140 120 140 140 120 140 140 Average Speed 160 | 143 160 160 178 182 186 155 184 181 140 159 160 159 160 195 160 163 170 170 177 178 170 174 170 169 174 179 217 179 150 140 140 140 140 142 141 140 140 135 140 140 Slowest Speed 285 | 160 160 160 180 200 200 220 205 280 160 160 160 160 160 200 170 170 170 170 220 180 180 180 170 170 180 180 285 190 190 140 140 140 140 145 145 140 140 140 140 140 Overloaded Moves . | . . . . . . . . . . . . . . . . . . . . . . . . . . . . . . . . . . . . . . . . . Propulsion Burnouts . | . . . . . . . . . . . . . . . . . . . . . . . . . . . . . . . . . . . . . . . . . Robots Hopped 1 | . . . . . . . . . . . . 1 . . . . . . . . . . . . . . . . . . . . . . . . . . . . Cave-ins Triggered 1 | . . . . . . . . . . . . . . . . . . . . . . . . . . . . . . . . . . . . . . 1 . . Teleports 3 | . . . . . . . . . . . . . . . . . . . . . . . . . . . . . . . . . . . . . . 2 1 . Exploration Rate (%) 62 | 5 44 99 94 98 89 97 36 17 97 19 97 98 68 97 12 81 79 72 90 8 90 35 97 76 91 57 3 95 39 59 57 61 47 21 92 43 95 79 24 14 Regions Visited 40 Branch Regions 24 Pre-discovered Areas 16 | . 1 1 2 . 1 . 1 1 . 1 2 . 1 . . . . . . . . . 1 . . . . . . 1 . 3 . . . . . . . . Known Exits Taken 20 | . . . 1 . . . . . . . . . . 1 1 . . . 1 . . 1 1 1 1 1 . . 1 1 1 1 1 1 1 1 1 1 1 . Unknown Exits Taken 14 | 1 1 1 . 1 1 1 1 . . 1 1 1 1 . . 1 1 1 . . . . . . . . . . . . . . . . . . . . . . Scrap Searched 20 | . . 1 . 2 . 2 . . . . 4 3 . 3 . . . . . . . . 2 . . 2 . . . . 1 . . . . . . . . . Spaces Dug 356 | . 6 . 39 8 10 5 11 5 8 . 35 4 . . 6 . . . 3 . 3 5 . 1 2 1 2 . 53 . 2 . 5 66 20 1 12 24 19 . Terrain Destroyed 1817 | . 24 . 155 33 71 45 120 21 16 15 67 9 . 18 26 19 . 1 20 3 12 20 9 2 74 5 11 1 270 7 3 . 12 95 36 114 32 136 311 4 Melee . | . . . . . . . . . . . . . . . . . . . . . . . . . . . . . . . . . . . . . . . . . Projectile 325 | . . . 2 . 2 13 10 . 16 . . 9 . . 9 3 . 1 17 3 12 9 1 2 11 5 3 1 50 7 3 . 12 10 23 1 22 44 20 4 AOE 1492 | . 24 . 153 33 69 32 110 21 . 15 67 . . 18 17 16 . . 3 . . 11 8 . 63 . 8 . 220 . . . . 85 13 113 10 92 291 . Terrain Rammed . | . . . . . . . . . . . . . . . . . . . . . . . . . . . . . . . . . . . . . . . . . Walls Destroyed . | . . . . . . . . . . . . . . . . . . . . . . . . . . . . . . . . . . . . . . . . . Machines Disabled . | . . . . . . . . . . . . . . . . . . . . . . . . . . . . . . . . . . . . . . . . . Actions | -11 -10 -10 -9 -9 -9 -8 -8 -7 -7 -7 -7 -7 -7 -6 -6 -6 -6 -6 -6 -5 -5 -5 -5 -5 -5 -4 -4 -4 -4 -4 -4 -4 -3 -3 -3 -2 -2 -2 -1 -1 --------- Run | Scr Mat Min Mat Min Exi Min Mat Fac Was Fac Low Low Dat Pro Fac Ext Cet Arc Hub Fac Was Fac Upp Upp War Pro Fac Was Fac Upp Upp Zhi Pro Res Tes Res Qua Sec Acc Com Total 33323 | 59 341 588 1404 675 1650 870 451 487 667 755 1093 1287 80 1037 458 891 242 115 1288 410 128 832 841 627 1106 400 230 364 2069 311 361 220 448 910 790 1201 3075 3038 1087 437 Wait 2549 | . 15 7 195 7 54 95 8 11 56 2 . 6 . 1 2 53 7 13 110 75 . 45 8 3 78 13 34 25 97 . . . . 25 55 10 1240 161 36 2 Move 26023 | 46 271 568 1041 551 1329 633 341 399 540 686 1072 1231 74 997 396 709 216 83 973 280 94 694 797 589 901 347 158 308 1534 288 348 173 368 765 571 1099 1565 2058 652 278 Hop 1 | . . . . . . . . . . . . 1 . . . . . . . . . . . . . . . . . . . . . . . . . . . . Pick Up 409 | 7 8 4 21 13 29 16 19 12 8 10 1 2 . 3 5 2 . 4 24 7 2 8 3 1 17 3 4 4 26 2 . 5 . 7 23 9 23 49 20 8 Fast Attach 222 | 5 3 . 14 7 1 3 5 1 3 2 . 2 . 1 1 2 . . 3 4 1 7 2 4 14 3 1 2 23 . . 9 1 7 6 9 21 42 8 5 Attach 388 | 1 1 . 3 3 8 13 5 5 . . . 3 . 2 3 1 1 . 18 8 1 8 . 3 15 8 5 2 45 2 . 2 1 10 23 12 31 90 37 18 Detach 241 | . . . 2 . 2 . 1 . 2 . . . . 2 1 1 . . 9 6 . 6 . 3 7 5 . 1 30 . . 2 1 7 11 6 25 73 21 17 Swap 311 | . 6 3 24 8 10 12 16 11 5 11 10 14 4 12 12 31 7 4 25 3 3 4 2 2 1 . . 2 9 . 2 1 . 2 13 3 2 16 14 7 Drop 479 | . 4 2 23 16 27 10 10 8 15 17 2 4 . 2 3 1 . 1 25 1 3 12 5 4 27 6 3 9 40 3 . 11 1 13 28 16 37 63 21 6 Fire 2432 | . 29 1 64 13 184 38 46 39 33 24 8 24 2 17 35 75 11 10 98 26 24 40 24 18 46 15 11 2 265 16 11 17 31 74 60 37 131 472 265 96 Melee 57 | . . . . 1 . 48 . . 5 3 . . . . . . . . . . . . . . . . . . . . . . . . . . . . . . Ram . | . . . . . . . . . . . . . . . . . . . . . . . . . . . . . . . . . . . . . . . . . Kick . | . . . . . . . . . . . . . . . . . . . . . . . . . . . . . . . . . . . . . . . . . Crush 35 | . 4 3 17 3 2 2 . 1 . . . . . . . . . . 3 . . . . . . . . . . . . . . . . . . . . . Escape Stasis 51 | . . . . . . . . . . . . . . . . 16 . . . . . 8 . . . . . . . . . . . . . . . 14 13 . Rewire 68 | . . . . . . . . . . . . . . . . . . . . . . . . . . . 14 9 . . . . 45 . . . . . . . Trap 57 | . . . . 53 4 . . . . . . . . . . . . . . . . . . . . . . . . . . . . . . . . . . . Miscellaneous . | . . . . . . . . . . . . . . . . . . . . . . . . . . . . . . . . . . . . . . . . . Route ------- -11/Scrapyard -10/Materials (discovered 2 exits: *Mat / *Min) -10/Mines (discovered 2 exits: *Mat x2) -9/Materials (discovered 5 exits: *Mat x3 / *Min x2) -9/Mines (discovered 3 exits: *Mat x2 / *Exi) -9/Exiles (discovered 2 exits: [*Min x2]) -8/Mines (discovered 2 exits: *Mat x2) -8/Materials -7/Factory -7/Waste -7/Factory (discovered 4 exits: *Fac x2 / *Sto / *Low) -7/Lower Caves (discovered 2 exits: *Low / *Dat) -7/Lower Caves (discovered 2 exits: *Fac / *Dat) -7/Data Miner -6/Proximity Caves -6/Factory (discovered 5 exits: Fac x2 / Low / *Ext x2) -6/Extension (discovered 3 exits: *Fac x2 / *Cet) -6/Cetus (discovered 2 exits: *Fac / [*Arc]) -6/Archives -6/Hub_04(d) (discovered 3 exits: *Fac x3) -5/Factory (discovered 2 exits: *Upp x2) -5/Waste -5/Factory (discovered 4 exits: *Fac x2 / *Upp x2) -5/Upper Caves (discovered 2 exits: *Upp / *War) -5/Upper Caves (discovered 2 exits: *Fac / *War) -5/Warlord -4/Proximity Caves -4/Factory -4/Waste -4/Factory (discovered 2 exits: *Upp x2) -4/Upper Caves -4/Upper Caves -4/Zhirov -3/Proximity Caves -3/Research (discovered 3 exits: Arm / *Tes x2) -3/Testing -2/Research -2/Quarantine (discovered 2 exits: *Acc / *Sec) -2/Section 7 -1/Access -1/Command To Fleet Rendezvous History --------- Turn | Location | Event 4 | -11/Scrapyard | Discovered new exit (range 16) 83 | -11/Scrapyard | Entered Materials 83 | -10/Materials | Discovered new exit (range 7) 307 | -10/Materials | Build established: Mutant 399 | -10/Materials | Discovered new exit (range 16) 641 | -10/Materials | Entered Mines 651 | -10/Mines | Met a Derelict bent on vengeance 829 | -10/Mines | Assisted by bots powering up and referring to "LRC-V3" 943 | -10/Mines | Learned location of Storage (-7) 955 | -10/Mines | Learned Materials stockpile data 965 | -10/Mines | Found a hidden stash of uninstalled traps 1018 | -10/Mines | Discovered new exit (range 7) 1092 | -10/Mines | Met a Derelict shopkeep closing up shop 1323 | -10/Mines | Discovered new exit (range 13) 1335 | -10/Mines | Received a Rocket Launcher from a helpful Derelict 1575 | -10/Mines | Entered Materials 1575 | -9/Materials | Accompanied by 3 allies 1575 | -9/Materials | Evolved 2 slots: Utility x2 1653 | -9/Materials | Repaired Lgt. Treads 1679 | -9/Materials | Repaired Lgt. Treads 2071 | -9/Materials | Discovered new exit (range 13) 2114 | -9/Materials | Identified exit to Mines 2369 | -9/Materials | Discovered new exit (range 5) 2483 | -9/Materials | Build established: Hauler-Mutant 2574 | -9/Materials | Repaired Lgt. Treads 2608 | -9/Materials | Repaired Imp. Light Cannon 2660 | -9/Materials | Repaired Cld. Ion Engine 2894 | -9/Materials | Destroyed 7 combat bots 3187 | -9/Materials | Discovered new exit (range 16) 3928 | -9/Materials | Entered Mines 3950 | -9/Mines | Discovered new exit (range 11) 4077 | -9/Mines | Found the Drone Emporium 4086 | -9/Mines | Found Prototype Device 4086 | -9/Mines | Identified Decoy Drone Bay 4357 | -9/Mines | Excavation squad dispatched 4357 | -9/Mines | A large section of the Mines collapsed 4372 | -9/Mines | Discovered new exit (range 14) 4486 | -9/Mines | Deemed a non-threat by the Exiles lab entrance 4486 | -9/Mines | Discovered new exit (range 5) 4625 | -9/Mines | Learned 4 Materials zone layouts 4831 | -9/Mines | Met a Derelict who couldn't figure out how to use a Trap Extractor 4993 | -9/Mines | A weapon hastily lodged in a ceiling crevice suddenly fell to the ground 5079 | -9/Mines | Entered Exiles 5158 | -9/Exiles | Met 8R-AWN 5186 | -9/Exiles | Met EX-HEX 5330 | -9/Exiles | Discovered new exit (range 15) 5502 | -9/Exiles | Met EX-DEC 5551 | -9/Exiles | Learned location of Zion (-6) 5583 | -9/Exiles | Met EX-BIN 5833 | -9/Exiles | Aligned with FarCom system 5835 | -9/Exiles | Given EX-Vault access code 5881 | -9/Exiles | Opened EX-Vault 5929 | -9/Exiles | Warned to stay clear of 0b10 Research branches 6257 | -9/Exiles | Discovered new exit (range 24) 6468 | -9/Exiles | Attacked by the Exiles 6519 | -9/Exiles | Build established: Mutant 7411 | -9/Exiles | Lost 3 parts (2n1w) 7428 | -9/Exiles | Destroyed 8R-AWN 7439 | -9/Exiles | Found 8R-AWN's Armor/EX 7446 | -9/Exiles | Found 8R-AWN's Boregun 7747 | -9/Exiles | Found 8R-AWN's Armor/TH 7774 | -9/Exiles | Found 8R-AWN's Boregun 7910 | -9/Exiles | Build established: Hauler-Mutant 7943 | -9/Exiles | Destroyed EX-HEX 7960 | -9/Exiles | Destroyed EX-BIN 8001 | -9/Exiles | Destroyed EX-DEC 8033 | -9/Exiles | Found Deploy-a-Sentry 8055 | -9/Exiles | Found System Purifier 8216 | -9/Exiles | Entered Mines 8356 | -8/Mines | 7V-RTL came to Exiles' defense 8524 | -8/Mines | Build established: Mutant 8604 | -8/Mines | Core integrity fell below 50% 8646 | -8/Mines | Lost 5 parts (2n2u1w) 8700 | -8/Mines | Lost 3 parts (1p1u1w) 8702 | -8/Mines | Destroyed 7V-RTL 8742 | -8/Mines | Found Adv. Powered Armor 9027 | -8/Mines | Discovered new exit (range 7) 9089 | -8/Mines | Build established: Scavenger-Mutant 9200 | -8/Mines | Discovered new exit (range 5) 9554 | -8/Mines | Entered Materials 9554 | -8/Materials | Evolved 2 slots: Utility x2 9962 | -8/Materials | Build established: Hauler-Mutant 10140 | -8/Materials | Garrison activated, responded to threat 10208 | -8/Materials | Discovered new exit (range 16) 10328 | -8/Materials | Repaired Arm. Treads? 10341 | -8/Materials | Repaired Lgt. Treads? 10377 | -8/Materials | Entered Factory 10377 | -7/Factory | Evolved 2 slots: Power x1, Utility x1 10691 | -7/Factory | Build established: Scavenger-Mutant 11045 | -7/Factory | Build established: Hauler-Mutant 11266 | -7/Factory | Sucked down chute 11266 | -7/Factory | Entered Waste 11267 | -7/Waste | Met a frightened Derelict 11287 | -7/Waste | Spotted C-40 Crusher 11293 | -7/Waste | Destroyed C-40 Crusher 11300 | -7/Waste | Spotted C-40 Crusher 11305 | -7/Waste | Found Damper Plating 11310 | -7/Waste | Destroyed C-40 Crusher 11317 | -7/Waste | Destroyed C-40 Crusher 11334 | -7/Waste | Found Damper Plating 11376 | -7/Waste | Spotted C-40 Crusher 11377 | -7/Waste | Destroyed C-40 Crusher 11394 | -7/Waste | Found Damper Plating 11397 | -7/Waste | Spotted C-40 Crusher 11402 | -7/Waste | Destroyed C-40 Crusher 11418 | -7/Waste | Spotted C-40 Crusher 11419 | -7/Waste | Destroyed C-40 Crusher 11492 | -7/Waste | Discovered new exit (range 10) 11561 | -7/Waste | Build established: Scavenger-Mutant 11675 | -7/Waste | Warlord forces began an assault 12093 | -7/Waste | Found Damper Plating 12171 | -7/Waste | Build established: Hauler-Mutant 12176 | -7/Waste | Entered Factory 12176 | -7/Factory | Accompanied by 17 allies 12684 | -7/Factory | Discovered new exit (range 3) 12937 | -7/Factory | Discovered new exit (range 7) 12953 | -7/Factory | Identified exit to Storage 13043 | -7/Factory | Identified exit to Factory 13270 | -7/Factory | Discovered exit to Factory (range 14) 13333 | -7/Factory | Discovered new exit (range 5) 13386 | -7/Factory | Entered Lower Caves 14346 | -7/Lower Caves | Discovered new exit (range 5) 14347 | -7/Lower Caves | A Derelict revealed a hidden shortcut to meet someone special 14539 | -7/Lower Caves | Encountered a Warlord checkpoint 14706 | -7/Lower Caves | Learned location of Armory (-3) 14706 | -7/Lower Caves | Learned location of 1 exit from Factory 14706 | -7/Lower Caves | Learned 8 Factory zone layouts 14706 | -7/Lower Caves | Learned 8 Research zone layouts 14706 | -7/Lower Caves | Learned Factory trap positions 14706 | -7/Lower Caves | Learned Research security intel 14706 | -7/Lower Caves | Learned Armory terminal intel 14829 | -7/Lower Caves | Attracted the attention of an 0b10 checkpoint 15137 | -7/Lower Caves | Entered another Lower Caves area 15190 | -7/Lower Caves | Discovered exit to Factory (range 13) 15361 | -7/Lower Caves | Encountered a Warlord checkpoint 15482 | -7/Lower Caves | Learned location of 1 exit from Factory 15955 | -7/Lower Caves | Discovered new exit (range 14) 15979 | -7/Lower Caves | Found Prototype Device 15979 | -7/Lower Caves | Identified Heart of Steel 16426 | -7/Lower Caves | Found Alien Artifact 16574 | -7/Lower Caves | Spotted B-75 Beast 16630 | -7/Lower Caves | Destroyed B-75 Beast 16663 | -7/Lower Caves | Learned location of 1 exit from Proximity Caves 16738 | -7/Lower Caves | Learned location of 1 exit from Factory 17208 | -7/Lower Caves | Entered Data Miner 17208 | -7/Data Miner | Discovered new exit (range 6) 17239 | -7/Data Miner | Met Data Miner 17272 | -7/Data Miner | Learned location of Section 7 (-2) 17272 | -7/Data Miner | Acquired the access code to Warlord's prototype stash 17298 | -7/Data Miner | Received God Mode back door access code from Data Miner 17336 | -7/Data Miner | Entered Proximity Caves 17338 | -6/Proximity Caves | Attracted the attention of an 0b10 checkpoint 17571 | -6/Proximity Caves | Escorted by Enhanced Grunt 18625 | -6/Proximity Caves | Found Exp. Thermal Shield 19123 | -6/Proximity Caves | Learned Factory emergency access door positions 19357 | -6/Proximity Caves | Entered Factory 19357 | -6/Factory | Evolved 2 slots: Utility x2 19358 | -6/Factory | Identified exit to Extension 19358 | -6/Factory | Identified exit to Lower Caves 19358 | -6/Factory | Identified exit to Factory 19360 | -6/Factory | Loaded intel: 85 trap records 19799 | -6/Factory | Discovered exit to Extension (range 4) 20110 | -6/Factory | Entered Extension 20194 | -6/Extension | Rescued a captive Derelict 20387 | -6/Extension | Rescued a captive Derelict 20406 | -6/Extension | Rescued a captive Derelict 20557 | -6/Extension | Rescued a captive Derelict 20583 | -6/Extension | Incoming investigation squad redirected 20810 | -6/Extension | Spotted B-75 Beast 20819 | -6/Extension | Destroyed B-75 Beast 20865 | -6/Extension | Spotted B-75 Beast 20889 | -6/Extension | Destroyed B-75 Beast 20909 | -6/Extension | Discovered exit to Factory (range 3) 20950 | -6/Extension | Rescued a captive Derelict 20979 | -6/Extension | Rescued A7 21041 | -6/Extension | Rescued a captive Derelict 21096 | -6/Extension | Rescued a captive Derelict 21096 | -6/Extension | Rescued a captive Derelict 21517 | -6/Extension | Discovered exit to Factory (range 10) 21519 | -6/Extension | Discovered new exit (range 6) 21566 | -6/Extension | Build established: Commander-Mutant 21568 | -6/Extension | Entered Cetus 21568 | -6/Cetus | Accompanied by 14 allies (A7) 21573 | -6/Cetus | Acquired a Cetus Manufacturing Module code from A7 21589 | -6/Cetus | Spotted Cetus Guard 21589 | -6/Cetus | Spotted Cetus Guard 21590 | -6/Cetus | Spotted Cetus Guard 21590 | -6/Cetus | Spotted Cetus Guard 21600 | -6/Cetus | Allies destroyed Cetus Guard 21602 | -6/Cetus | Destroyed Cetus Guard 21607 | -6/Cetus | Allies destroyed Cetus Guard 21609 | -6/Cetus | Allies destroyed Cetus Guard 21668 | -6/Cetus | Started Cetus Manufacturing Module 21691 | -6/Cetus | Found a strange terminal 21693 | -6/Cetus | Manufactured an Enhanced Grunt 21718 | -6/Cetus | Manufactured an Enhanced Grunt 21721 | -6/Cetus | Escorted A7 to Cetus Mainframe 21743 | -6/Cetus | Manufactured an Enhanced Grunt 21768 | -6/Cetus | Manufactured an Enhanced Grunt 21793 | -6/Cetus | Manufactured an Enhanced Grunt 21844 | -6/Cetus | Discovered new exit (range 16) 21877 | -6/Cetus | Spotted Cetus Guard 21877 | -6/Cetus | Spotted Cetus Guard 21880 | -6/Cetus | Spotted Cetus Guard 21880 | -6/Cetus | Spotted Cetus Guard 21884 | -6/Cetus | Allies destroyed Cetus Guard 21893 | -6/Cetus | Allies destroyed Cetus Guard 21895 | -6/Cetus | Allies destroyed Cetus Guard 21898 | -6/Cetus | Allies destroyed Cetus Guard 21898 | -6/Cetus | Discovered exit to Factory (range 15) 21921 | -6/Cetus | Met Revision 17 21980 | -6/Cetus | Entered Archives 21980 | -6/Archives | Accompanied by 11 allies (A7) 21985 | -6/Archives | Received a hacking code to weaken MAIN.C 22078 | -6/Archives | Discovered new exit (range 16) 22180 | -6/Archives | Entered Hub_04(d) 22180 | -6/Hub_04(d) | Accompanied by 6 allies 22218 | -6/Hub_04(d) | Discovered exit to Factory (range 15) 22294 | -6/Hub_04(d) | Build established: Hauler-Mutant 22578 | -6/Hub_04(d) | Garrison activated, responded to threat 22586 | -6/Hub_04(d) | Discovered exit to Factory (range 16) 22710 | -6/Hub_04(d) | Network Hub disabled 22758 | -6/Hub_04(d) | Spotted Lightning 22758 | -6/Hub_04(d) | Spotted Lightning 22784 | -6/Hub_04(d) | Spotted Lightning 22788 | -6/Hub_04(d) | Destroyed Lightning 22788 | -6/Hub_04(d) | Destroyed Lightning 22815 | -6/Hub_04(d) | Found EMDS 22829 | -6/Hub_04(d) | Destroyed Lightning 22841 | -6/Hub_04(d) | Found Exp. Targeting Computer 23092 | -6/Hub_04(d) | Build established: Scavenger-Mutant 23112 | -6/Hub_04(d) | Spotted Lightning 23127 | -6/Hub_04(d) | Spotted Lightning 23152 | -6/Hub_04(d) | Spotted Lightning 23171 | -6/Hub_04(d) | Network Hub disabled 23189 | -6/Hub_04(d) | Destroyed Lightning 23207 | -6/Hub_04(d) | Destroyed Lightning 23216 | -6/Hub_04(d) | Destroyed Lightning 23240 | -6/Hub_04(d) | Found EMDS 23251 | -6/Hub_04(d) | Found EMDS 23413 | -6/Hub_04(d) | Spotted Lightning 23422 | -6/Hub_04(d) | Spotted Lightning 23423 | -6/Hub_04(d) | Spotted Lightning 23438 | -6/Hub_04(d) | Destroyed Lightning 23444 | -6/Hub_04(d) | Destroyed Lightning 23447 | -6/Hub_04(d) | Destroyed Lightning 23471 | -6/Hub_04(d) | Found EMDS 23493 | -6/Hub_04(d) | Spotted Lightning 23493 | -6/Hub_04(d) | Spotted Lightning 23494 | -6/Hub_04(d) | Spotted Lightning 23524 | -6/Hub_04(d) | Destroyed Lightning 23530 | -6/Hub_04(d) | Destroyed Lightning 23541 | -6/Hub_04(d) | Destroyed Lightning 23564 | -6/Hub_04(d) | Found EMDS 23580 | -6/Hub_04(d) | First assault squad dispatched 23603 | -6/Hub_04(d) | Discovered exit to Factory (range 9) 23696 | -6/Hub_04(d) | Destroyed 9 combat bots 23745 | -6/Hub_04(d) | Network Hub disabled 24147 | -6/Hub_04(d) | Network Hub disabled 24309 | -6/Hub_04(d) | Incoming assault squad redirected 24395 | -6/Hub_04(d) | Entered Factory 24395 | -5/Factory | Evolved 2 slots: Utility x2 24416 | -5/Factory | Build established: Hauler-Mutant 24478 | -5/Factory | Repaired Arm. Huge Wheel 24506 | -5/Factory | Repaired Hcp. Storage Unit 24628 | -5/Factory | Discovered new exit (range 15) 24650 | -5/Factory | Fabricated Exp. Sensor Array? 24684 | -5/Factory | Garrison activated, responded to threat 24934 | -5/Factory | Incoming assault squad redirected 24953 | -5/Factory | Identified exit to Upper Caves 25059 | -5/Factory | Sucked down chute 25059 | -5/Factory | Entered Waste 25074 | -5/Waste | EMP discharged 25102 | -5/Waste | Destroyed C-40 Crusher 25116 | -5/Waste | Destroyed C-40 Crusher 25119 | -5/Waste | Destroyed C-40 Crusher 25127 | -5/Waste | Destroyed C-40 Crusher 25150 | -5/Waste | Spotted C-40 Crusher 25171 | -5/Waste | Destroyed C-40 Crusher 25174 | -5/Waste | EMP discharged 25176 | -5/Waste | Found Damper Plating 25183 | -5/Waste | Found Damper Plating 25221 | -5/Waste | Spotted C-40 Crusher 25272 | -5/Waste | Discovered new exit (range 16) 25274 | -5/Waste | EMP discharged 25298 | -5/Waste | Entered Factory 25361 | -5/Factory | Build established: Scavenger-Mutant 25996 | -5/Factory | Build established: Hauler-Mutant 26244 | -5/Factory | Discovered new exit (range 44) 26296 | -5/Factory | Discovered new exit (range 99) 26598 | -5/Factory | Fabricated Exp. Signal Interpreter (x1) 26622 | -5/Factory | Incoming investigation squad redirected 26689 | -5/Factory | Entered Upper Caves 26704 | -5/Upper Caves | A Derelict revealed a hidden shortcut to "reach the base" 26705 | -5/Upper Caves | Identified exit to Warlord 27881 | -5/Upper Caves | Learned Research trap positions 27881 | -5/Upper Caves | Learned Armory stockpile data 27881 | -5/Upper Caves | Learned Research security intel 28056 | -5/Upper Caves | Discovered new exit (range 6) 28063 | -5/Upper Caves | Identified exit to Upper Caves 28112 | -5/Upper Caves | Entered another Upper Caves area 28253 | -5/Upper Caves | Discovered new exit (range 5) 28259 | -5/Upper Caves | Identified exit to Factory 28981 | -5/Upper Caves | Learned Factory trap positions 29018 | -5/Upper Caves | Discovered exit to Warlord (range 3) 29048 | -5/Upper Caves | Found Alien Artifact 29048 | -5/Upper Caves | Identified Core Expander 29048 | -5/Upper Caves | Installed Core Expander, added new Power slot 29170 | -5/Upper Caves | Entered Warlord 29218 | -5/Warlord | Discovered new exit (range 9) 29230 | -5/Warlord | Identified exit to Proximity Caves 29233 | -5/Warlord | Identified Dimensional Node Initializer 29233 | -5/Warlord | Initialized slip node 29683 | -5/Warlord | Received a Watcher feed algorithm from an ecstatic Tinkerer 29984 | -5/Warlord | Visited the Vortex Lab 29990 | -5/Warlord | Found Prototype Energy Gun 29990 | -5/Warlord | Identified Vortex Rail 29996 | -5/Warlord | Warlord's base attacked by MAIN.C 29999 | -5/Warlord | Found Prototype Energy Gun 29999 | -5/Warlord | Identified Vortex Shotgun 30003 | -5/Warlord | Found Vortex Shotgun 30007 | -5/Warlord | Found Prototype Launcher 30171 | -5/Warlord | Met Warlord 30193 | -5/Warlord | Opened Warlord's prototype stash 30217 | -5/Warlord | Found Prototype Device 30217 | -5/Warlord | Identified Exp. Focal Shield 30224 | -5/Warlord | Found Prototype Processor 30233 | -5/Warlord | Found Prototype Reactor 30233 | -5/Warlord | Identified Vortex Chain Reactor 30295 | -5/Warlord | Build established: Generator-Mutant 30346 | -5/Warlord | Warlord forces counterattacked 30462 | -5/Warlord | Identified Vortex Catalyst Activator 30502 | -5/Warlord | Spotted Striker 30507 | -5/Warlord | Destroyed Striker 30528 | -5/Warlord | Destroyed 12 combat bots 30624 | -5/Warlord | Spotted Striker 30637 | -5/Warlord | Destroyed 16 combat bots 30671 | -5/Warlord | Warlord base infiltrated, sounded retreat 30702 | -5/Warlord | P-80 Master assimilated allied DF-9DR(M) 30780 | -5/Warlord | Found Prototype Launcher 30780 | -5/Warlord | Identified Chain Missile Launcher 30825 | -5/Warlord | Spotted Striker 30830 | -5/Warlord | Spotted Executioner 30844 | -5/Warlord | Destroyed Executioner 30896 | -5/Warlord | Spotted Striker 30896 | -5/Warlord | Spotted Executioner 30900 | -5/Warlord | Spotted Striker 30911 | -5/Warlord | Destroyed Executioner 30918 | -5/Warlord | Destroyed Striker 30920 | -5/Warlord | Destroyed Striker 30954 | -5/Warlord | Destroyed 17 combat bots 30978 | -5/Warlord | Found Prototype Device 30986 | -5/Warlord | Entered Proximity Caves 31059 | -4/Proximity Caves | Identified Adv. Kinecellerator 31621 | -4/Proximity Caves | Discovered exit to Factory (range 15) 31677 | -4/Proximity Caves | Entered Factory 31677 | -4/Factory | Evolved 2 slots: Propulsion x1, Utility x1 31678 | -4/Factory | Loaded intel: 85 trap records 31855 | -4/Factory | Fabricated Exp. Sensor Array? 32075 | -4/Factory | Local fabrication network quarantined 32088 | -4/Factory | Fabricated X-72 Disruptor (x2) 32102 | -4/Factory | Sucked down chute 32102 | -4/Factory | Entered Waste 32102 | -4/Waste | The area was eerily silent 32135 | -4/Waste | 2 allies followed down the chute 32140 | -4/Waste | A Compactor rumbled back to life 32140 | -4/Waste | Spotted C-40 Crusher 32154 | -4/Waste | Rewired C-40 Crusher 32209 | -4/Waste | Found Damper Plating 32230 | -4/Waste | Found Damper Plating 32238 | -4/Waste | Found Damper Plating 32329 | -4/Waste | Discovered new exit (range 16) 32400 | -4/Waste | A Compactor rumbled back to life 32401 | -4/Waste | Spotted C-40 Crusher 32434 | -4/Waste | Rewired C-40 Crusher 32540 | -4/Waste | Destroyed Crusher 7a 32690 | -4/Waste | Identified exit to Factory 32714 | -4/Waste | Entered Factory 32714 | -4/Factory | Accompanied by 3 allies 32812 | -4/Factory | Fabricated I-47 Archangel? 32812 | -4/Factory | Identified Spectral Analyzer 33110 | -4/Factory | Build established: Hauler-Mutant 33415 | -4/Factory | Build established: Generator-Mutant 33425 | -4/Factory | Identified exit to Upper Caves 34370 | -4/Factory | Repaired Arm. Huge Wheel 34396 | -4/Factory | Repaired Imp. Particle Charger 34464 | -4/Factory | First assault squad dispatched 34619 | -4/Factory | Found Prototype Processor 34619 | -4/Factory | Identified Exp. Terrain Scan Processor 34719 | -4/Factory | Fabricated Quantum Capacitor? 34736 | -4/Factory | Incoming assault squad redirected 34831 | -4/Factory | Incoming investigation squad redirected 35189 | -4/Factory | Destroyed 9 combat bots 35192 | -4/Factory | Lost 3 parts (1p2u) 35233 | -4/Factory | Incoming assault squad redirected 35254 | -4/Factory | Incoming investigation squad redirected 35329 | -4/Factory | Found Exp. Terrain Scanner 35398 | -4/Factory | Fabricated Vortex Chain Reactor (x1) 35473 | -4/Factory | High security lockdown imminent 35553 | -4/Factory | High security lockdown engaged 35587 | -4/Factory | Destroyed 8 combat bots 35641 | -4/Factory | Destroyed 8 combat bots 35697 | -4/Factory | Entered Upper Caves 36024 | -4/Upper Caves | Discovered new exit (range 8) 36035 | -4/Upper Caves | Identified exit to Upper Caves 36122 | -4/Upper Caves | Entered another Upper Caves area 36123 | -4/Upper Caves | Encountered a Warlord checkpoint 36299 | -4/Upper Caves | Learned Research trap positions 36578 | -4/Upper Caves | Discovered new exit (range 13) 36598 | -4/Upper Caves | Identified exit to Zhirov 36624 | -4/Upper Caves | Entered Zhirov 36624 | -4/Zhirov | Discovered new exit (range 4) 36627 | -4/Zhirov | Identified exit to Proximity Caves 36650 | -4/Zhirov | Met Zhirov 36678 | -4/Zhirov | Learned location of Quarantine (-2) 36678 | -4/Zhirov | Learned location of Testing (-3) 36678 | -4/Zhirov | Learned location of Command (-1) 36699 | -4/Zhirov | Zhirov requested help retrieving the SGEMP Prototype 36720 | -4/Zhirov | Found Alien Artifact 36720 | -4/Zhirov | Identified Integrated Reactor 36720 | -4/Zhirov | Installed Integrated Reactor, increased core energy generation (+10) 36746 | -4/Zhirov | Found Alien Artifact 36945 | -4/Zhirov | Entered Proximity Caves 37522 | -3/Proximity Caves | Discovered new exit (range 14) 37539 | -3/Proximity Caves | Identified exit to Research 37540 | -3/Proximity Caves | Entered Research 37540 | -3/Research | Accompanied by 1 ally 37540 | -3/Research | Evolved 2 slots: Utility x2 37542 | -3/Research | Loaded intel: 70 trap records 37591 | -3/Research | Incoming investigation squad redirected 37740 | -3/Research | Revision forces began assault on 0b10 37770 | -3/Research | Met up with Revision 17++ 37792 | -3/Research | Spotted B-86 Titan 37829 | -3/Research | Build established: Generator-Skirmisher 37961 | -3/Research | Identified Transdimensional Reconstructor 38108 | -3/Research | Fabricated Vortex Chain Reactor (x1) 38202 | -3/Research | Identified exit to Armory 38202 | -3/Research | Identified exit to Testing 38240 | -3/Research | Research terminal network offline 38634 | -3/Research | Spotted Striker 38639 | -3/Research | Destroyed Striker 38778 | -3/Research | Entered Testing 39107 | -3/Testing | Found Centrium Heavy Armor Plating 39137 | -3/Testing | Found Prototype Launcher 39168 | -3/Testing | Identified Mni. Smartbomb Launcher 39197 | -3/Testing | Found Prototype Leg 39197 | -3/Testing | Identified Myomer Exoskeleton 39287 | -3/Testing | Found Gamma Bomb Array 39421 | -3/Testing | Fabricated Exp. Sensor Array? 39508 | -3/Testing | Discovered new exit (range 30) 39516 | -3/Testing | Found Prototype Energy Cannon 39516 | -3/Testing | Identified Hpw. Disruptor Cannon 39578 | -3/Testing | Found Prototype Launcher 39583 | -3/Testing | Identified Adv. Micro-nuke Launcher 39602 | -3/Testing | Found Prototype Energy Cannon 39611 | -3/Testing | Identified Imp. Potential Cannon 39612 | -3/Testing | Found Prototype Energy Cannon 39629 | -3/Testing | Identified Potential Cannon 39664 | -3/Testing | Identified exit to Research 39794 | -3/Testing | Entered Research 39794 | -2/Research | Warlord forces began assault on 0b10 39794 | -2/Research | Evolved 2 slots: Utility x2 39795 | -2/Research | Loaded intel: 56 trap records 39815 | -2/Research | Build established: Generator-Mutant 39904 | -2/Research | Research machine network offline 40015 | -2/Research | Met up with Warlord 40113 | -2/Research | Borebot progress halted 40130 | -2/Research | Discovered new exit (range 35) 40168 | -2/Research | Build established: Generator-Skirmisher 40244 | -2/Research | Identified exit to Quarantine 40384 | -2/Research | Borebot progress halted 40560 | -2/Research | Spotted Executioner 40565 | -2/Research | Destroyed Executioner 40903 | -2/Research | Found Prototype Processor 40903 | -2/Research | Identified Exp. Core Analyzer 41045 | -2/Research | Borebot progress halted 41253 | -2/Research | Warlord invited to help at Command 41437 | -2/Research | Entered Quarantine 41461 | -2/Quarantine | Found Alien Artifact 41485 | -2/Quarantine | Identified Hpw. Transdimensional Reconstructor 41523 | -2/Quarantine | Cryocooling Duct disabled 41538 | -2/Quarantine | Ambient heat levels rising (+20) 41538 | -2/Quarantine | Non-combat units ordered to evacuate 41574 | -2/Quarantine | Found Alien Artifact 41660 | -2/Quarantine | Identified Core Reset Matrix 41687 | -2/Quarantine | First assault squad dispatched 41706 | -2/Quarantine | Found Alien Slashing Weapon 41713 | -2/Quarantine | Incoming assault squad redirected 41829 | -2/Quarantine | Discovered new exit (range 8) 41845 | -2/Quarantine | Found Alien Artifact 41877 | -2/Quarantine | Identified exit to Access 42186 | -2/Quarantine | Found Alien Artifact 42186 | -2/Quarantine | Identified Matter Drive 42191 | -2/Quarantine | Incoming investigation squad redirected 42231 | -2/Quarantine | Found Alien Artifact 42231 | -2/Quarantine | Identified Phase Redirector 42293 | -2/Quarantine | Garrison activated, responded to threat 42352 | -2/Quarantine | Build established: Generator-Mutant 42400 | -2/Quarantine | Spotted Alpha 7 42449 | -2/Quarantine | Found Alien Artifact 42449 | -2/Quarantine | Identified Subatomic Replicator 42486 | -2/Quarantine | Found Alien Launcher 42851 | -2/Quarantine | Identified Terrabomb 42851 | -2/Quarantine | Identified Sigix Terminator 42954 | -2/Quarantine | Used Core Reset Matrix 42958 | -2/Quarantine | Detected hypermatrix surge 42958 | -2/Quarantine | Sensed 11 artifacts in vicinity 42983 | -2/Quarantine | Found Hpw. Transdimensional Reconstructor 42985 | -2/Quarantine | Found Hpw. Transdimensional Reconstructor 43157 | -2/Quarantine | Found Terrabomb 43163 | -2/Quarantine | Discovered exit to Access (range 14) 43267 | -2/Quarantine | Cryocooling Duct disabled 43267 | -2/Quarantine | Cryocooling Duct disabled 43282 | -2/Quarantine | Ambient heat levels rising (+40) 43282 | -2/Quarantine | Combat units ordered to evacuate 43301 | -2/Quarantine | Cryocooling Duct disabled 43316 | -2/Quarantine | Ambient heat levels rising (+20) 43382 | -2/Quarantine | Quarantine Guard activated 43539 | -2/Quarantine | Spotted Fortress 43628 | -2/Quarantine | Spotted Quarantine Guard 43637 | -2/Quarantine | Destroyed Quarantine Guard 43716 | -2/Quarantine | Spotted Quarantine Guard 43728 | -2/Quarantine | Destroyed Quarantine Guard 45107 | -2/Quarantine | Discovered new exit (range 6) 45107 | -2/Quarantine | Spotted Quarantine Guard 45113 | -2/Quarantine | Destroyed Quarantine Guard 45119 | -2/Quarantine | Identified exit to Section 7 45120 | -2/Quarantine | Entered Section 7 45121 | -2/Section 7 | Sensed 22 artifacts in vicinity 45329 | -2/Section 7 | Spotted S7 Guard 45346 | -2/Section 7 | Destroyed S7 Guard 45349 | -2/Section 7 | Found Prototype Protection 45349 | -2/Section 7 | Identified Hvy. Regenerative Plating 45383 | -2/Section 7 | Used Subatomic Replicator to replicate Integrated Singularity Reactor 45385 | -2/Section 7 | Found Integrated Singularity Reactor 45385 | -2/Section 7 | Installed Integrated Singularity Reactor, increased core energy generation (+20) 45388 | -2/Section 7 | Installed Integrated Singularity Reactor, increased core energy generation (+20) 45801 | -2/Section 7 | Spotted B-90 Cyclops 46018 | -2/Section 7 | Destroyed B-90 Cyclops 46067 | -2/Section 7 | Spotted S7 Guard 46071 | -2/Section 7 | Found Integrated Heat Negator 46071 | -2/Section 7 | Installed Integrated Heat Negator, increased core heat dissipation (+40) 46156 | -2/Section 7 | First assault squad dispatched 46177 | -2/Section 7 | Destroyed S7 Guard 46185 | -2/Section 7 | Incoming assault squad redirected 46210 | -2/Section 7 | Destroyed 8 combat bots 46241 | -2/Section 7 | Found Prototype Launcher 46258 | -2/Section 7 | Spotted B-90 Cyclops 46490 | -2/Section 7 | Found Integrity Redistributor 46592 | -2/Section 7 | Scanned by Researcher 46593 | -2/Section 7 | Intercept squad dispatched 46594 | -2/Section 7 | Spotted Tracker 46594 | -2/Section 7 | Spotted Combat Programmer 46599 | -2/Section 7 | Spotted Tracker 46603 | -2/Section 7 | Spotted Combat Programmer 46604 | -2/Section 7 | Destroyed Tracker 46604 | -2/Section 7 | Destroyed Tracker 46614 | -2/Section 7 | Found Exp. Phase Shifter 46669 | -2/Section 7 | Destroyed 7 combat bots 46671 | -2/Section 7 | Incoming assault squad redirected 46672 | -2/Section 7 | Incoming assault squad redirected 46677 | -2/Section 7 | High security lockdown imminent 46678 | -2/Section 7 | Used Integrity Redistributor, redistributed integrity from core (-302) 46702 | -2/Section 7 | Warped through subspace 46757 | -2/Section 7 | High security lockdown engaged 46805 | -2/Section 7 | Discovered exit to Access (range 8) 46877 | -2/Section 7 | Found Integrity Redistributor 46935 | -2/Section 7 | Destroyed 31 combat bots 46946 | -2/Section 7 | Found Integrity Redistributor 46952 | -2/Section 7 | Spotted Investigator 46963 | -2/Section 7 | Destroyed Investigator 47006 | -2/Section 7 | Found Core Reset Matrix 47010 | -2/Section 7 | Destroyed 9 combat bots 47027 | -2/Section 7 | Door terminal overloaded 47042 | -2/Section 7 | Destroyed Executioner 47043 | -2/Section 7 | Destroyed Executioner 47060 | -2/Section 7 | Spotted Striker 47067 | -2/Section 7 | Destroyed Executioner 47068 | -2/Section 7 | Destroyed Striker 47150 | -2/Section 7 | Destroyed 26 combat bots 47162 | -2/Section 7 | Door terminal overloaded 47163 | -2/Section 7 | Door terminal overloaded 47167 | -2/Section 7 | Found Terrabomb 47181 | -2/Section 7 | Found Transdimensional Reconstructor 47184 | -2/Section 7 | Found Transdimensional Reconstructor 47186 | -2/Section 7 | Found Transdimensional Reconstructor 47257 | -2/Section 7 | Spotted B-99 Colossus 47289 | -2/Section 7 | Warped through subspace 47290 | -2/Section 7 | Core integrity fell below 50% 47307 | -2/Section 7 | Sterilization system engaged 47307 | -2/Section 7 | Non-combat units ordered to evacuate 47332 | -2/Section 7 | Found LRC Boosters 47332 | -2/Section 7 | Installed LRC Boosters, increased mass support (+10) 47341 | -2/Section 7 | Found LRC Boosters 47341 | -2/Section 7 | Installed LRC Boosters, increased mass support (+10) 47394 | -2/Section 7 | Found Integrated Dissipator 47394 | -2/Section 7 | Installed Integrated Dissipator, increased core heat dissipation (+20) 47397 | -2/Section 7 | Found Integrated Dissipator 47397 | -2/Section 7 | Installed Integrated Dissipator, increased core heat dissipation (+20) 47400 | -2/Section 7 | Found Integrated Dissipator 47400 | -2/Section 7 | Installed Integrated Dissipator, increased core heat dissipation (+20) 47407 | -2/Section 7 | Combat units ordered to evacuate 47535 | -2/Section 7 | Destroyed B-99 Colossus 47607 | -2/Section 7 | Ambient heat levels rising (+10) 47730 | -2/Section 7 | Crushed by falling debris 47730 | -2/Section 7 | Spotted S7 Guard 47731 | -2/Section 7 | System corruption reached 10% 47734 | -2/Section 7 | Found Core Regenerator 47757 | -2/Section 7 | Ambient heat levels rising (+10) 47902 | -2/Section 7 | Found Hvy. Regenerative Plating 47907 | -2/Section 7 | Ambient heat levels rising (+10) 48057 | -2/Section 7 | Ambient heat levels rising (+10) 48207 | -2/Section 7 | Ambient heat levels rising (+10) 48357 | -2/Section 7 | Ambient heat levels rising (+10) 48392 | -2/Section 7 | Found Antimissile System 48468 | -2/Section 7 | Destroyed B-90 Cyclops 48478 | -2/Section 7 | Identified Com. Tesla Bomb Launcher 48507 | -2/Section 7 | Ambient heat levels rising (+10) 48633 | -2/Section 7 | Found Prototype Device 48633 | -2/Section 7 | Identified Exp. Force Field 48657 | -2/Section 7 | Ambient heat levels rising (+10) 48757 | -2/Section 7 | Found Com. Tesla Bomb Launcher 48760 | -2/Section 7 | Found Com. Tesla Bomb Launcher 48807 | -2/Section 7 | Ambient heat levels rising (+10) 48852 | -2/Section 7 | Entered Access 48852 | -1/Access | Evolved 2 slots: Power x1, Utility x1 49056 | -1/Access | High security lockdown imminent 49081 | -1/Access | Destroyed 7 combat bots 49119 | -1/Access | Found Com. Tesla Bomb Launcher 49136 | -1/Access | High security lockdown engaged 49168 | -1/Access | Spotted Striker 49179 | -1/Access | Destroyed Striker 49266 | -1/Access | Destroyed 13 combat bots 49362 | -1/Access | Used Integrity Redistributor, redistributed integrity from core (-271) 49390 | -1/Access | Spotted Investigator 49391 | -1/Access | Destroyed Investigator 49423 | -1/Access | Destroyed 32 combat bots 49512 | -1/Access | Destroyed 9 combat bots 49574 | -1/Access | Spotted Striker 49574 | -1/Access | Spotted Executioner 49579 | -1/Access | Destroyed Striker 49582 | -1/Access | Destroyed Executioner 49611 | -1/Access | Intercept squad dispatched 49618 | -1/Access | Destroyed 17 combat bots 49636 | -1/Access | Spotted Tracker 49637 | -1/Access | Spotted Tracker 49637 | -1/Access | Destroyed Tracker 49639 | -1/Access | Destroyed Tracker 49702 | -1/Access | Spotted Combat Programmer 49706 | -1/Access | Destroyed Combat Programmer 49716 | -1/Access | Spotted Executioner 49725 | -1/Access | Destroyed Executioner 49725 | -1/Access | Spotted Executioner 49736 | -1/Access | Warped through subspace 49754 | -1/Access | Destroyed 8 combat bots 49910 | -1/Access | Spotted Executioner 49911 | -1/Access | Destroyed Executioner 49950 | -1/Access | Spotted Executioner 49951 | -1/Access | Spotted Striker 49957 | -1/Access | Destroyed Striker 49958 | -1/Access | Destroyed Executioner 49960 | -1/Access | Sterilization system engaged 49975 | -1/Access | Found Prototype Device 49975 | -1/Access | Identified Adv. Kinecellerator 49989 | -1/Access | Destroyed 22 combat bots 50056 | -1/Access | Spotted Striker 50061 | -1/Access | Spotted Executioner 50079 | -1/Access | Spotted Striker 50084 | -1/Access | Destroyed Executioner 50092 | -1/Access | Spotted Investigator 50099 | -1/Access | Destroyed Striker 50100 | -1/Access | Destroyed Striker 50107 | -1/Access | Destroyed Investigator 50132 | -1/Access | Destroyed 21 combat bots 50260 | -1/Access | Ambient heat levels rising (+10) 50355 | -1/Access | Discovered new exit (range 9) 50364 | -1/Access | Identified exit to Command 50367 | -1/Access | Entered Command 50417 | -1/Command | High security lockdown imminent 50438 | -1/Command | Destroyed 7 combat bots 50456 | -1/Command | Disengaged cave seal 50456 | -1/Command | Derelicts emerged from the dark tunnel 50457 | -1/Command | Welcomed Warlord to Command 50497 | -1/Command | High security lockdown engaged 50575 | -1/Command | Destroyed M Guard 50579 | -1/Command | Destroyed M Guard 50579 | -1/Command | Spotted Combat Programmer 50580 | -1/Command | Spotted Combat Programmer 50584 | -1/Command | Warlord commented on Warlord statues 50589 | -1/Command | Spotted Striker 50615 | -1/Command | Destroyed Combat Programmer 50615 | -1/Command | All MAIN.C guards destroyed 50637 | -1/Command | Found Prototype Device 50637 | -1/Command | Identified AEGIS Remote Shield 50642 | -1/Command | Found Prototype Reactor 50647 | -1/Command | Identified Zero-point Reactor 50650 | -1/Command | Found Prototype Launcher 50650 | -1/Command | Identified Hellfire Missile Launcher 50655 | -1/Command | Found Prototype Launcher 50655 | -1/Command | Identified Ragnarok Missile Launcher 50663 | -1/Command | Found AEGIS Remote Shield 50669 | -1/Command | Found Prototype Energy Cannon 50678 | -1/Command | Door terminal overloaded 50680 | -1/Command | Used Core Regenerator, restored core integrity (+400) 50682 | -1/Command | Used Integrity Redistributor, redistributed integrity from core (-257) 50692 | -1/Command | Spotted Investigator 50693 | -1/Command | Spotted Striker 50701 | -1/Command | Destroyed Investigator 50709 | -1/Command | Destroyed Striker 50827 | -1/Command | Met MAIN.C 50827 | -1/Command | 0b10 Conduit disabled 50828 | -1/Command | Destroyed MAIN.C Shell 50831 | -1/Command | MAIN.C activated Command garrisons 50846 | -1/Command | Spotted Investigator 50851 | -1/Command | Destroyed Investigator 50879 | -1/Command | Identified Cld. Nova Cannon 50883 | -1/Command | Spotted Striker 50887 | -1/Command | Destroyed Striker 50913 | -1/Command | Destroyed 32 combat bots 50941 | *** | Heading to fleet! Last Messages --------------- 50933_ Penetrated by Slug. 50936_ Imp. Quantum Reactor destroyed. 50936_ Knocked back. 50936_ Penetrated by Slug. 50939_ Critical hit. 50939_ Knocked back. 50939_ Penetrated by Slug. 50940_ Warlord suffers critical hit. 50941_ Blast Slug penetrates MAIN.C. 50941_ MAIN.C knocked back. 50941_ Blast Slug penetrates MAIN.C. 50941_ MAIN.C knocked back. 50941_ Blast Slug penetrates MAIN.C. 50941_ MAIN.C: "I hope you know you're still going to DIE HERE WITH ME!" 50941_ MAIN.C destroyed. 50941_ Blast Slug penetrates Reinforced Barrier. Warlord: Victory! Sure there's still lots to do, but without MAIN.C at the helm 0b10 doesn't stand a chance. We've got this... Map ----- +----------------------------------------------------+ | ?????????????????????????????????????????????????? | | ?????????????????????????????????????????????????? | | ?????????????????????????????????????????????????? | | ?????????????????????????????????????????????????? | | ?????????????????????????????????????????????????? | | ?????????????????????????????????????????????????? | | ?????????????????????????????????????????????????? | | ?????????????????????????????????????????????????? | | ?????????????????????????????????????????????????? | | ?????????????????????????????????????????????????? | | ?????????????????????????????????????????????????? | | ?????????????????????????????????????????????????? | | ?????????????????????????????????????????????????? | | ?????????????????????????????????????????????????? | | ?????????????????????????????????????????????????? | | ?????????????????????????????????????????????????? | | ?????????????????????????????????????????????????? | | ??????????????#####################??????????????? | | ??????????????"" """ """" #??????????????? | | ??????????????" " #?###??????????? | | ??????????????"""" ### #"########## | | ????????????#""" / g] *% */ ! | | ????????????#" % =g[hl %/% % | | ????????????# g/%g =! =*|= % | | ????????????# W % s################ | | ????????????# @ #??????????????? | | ????????????# #??????????????? | | ????????????# #??????????????? | | ????????????#""""" % "" """#??????????????? | | ?????????????" """""#??????????????? | | ????????????# """""""#??????????????? | | ????????????# " " " #??????????????? | | ????????????# " " " " ???????????????? | | ????????????" " " """" "????????????????? | | ????????????? """ " " """"????????????????? | | ????????????? " " " ?? ???????????????? | | ?????????????? """""""""" ???????????????????? | | ?????????????? ?????" " """????????????????????? | | ???????????????????????"??" ?????????????????????? | | ???????????????????????????#?????????????????????? | | ?????????????????????????????????????????????????? | | ?????????????????????????????????????????????????? | | ?????????????????????????????????????????????????? | | ?????????????????????????????????????????????????? | | ?????????????????????????????????????????????????? | | ?????????????????????????????????????????????????? | | ?????????????????????????????????????????????????? | | ?????????????????????????????????????????????????? | | ?????????????????????????????????????????????????? | | ?????????????????????????????????????????????????? | +----------------------------------------------------+ Best States ------------- Heat Dissipation 190 Energy Generation 157 Energy Capacity 2200 Matter Stores 300 Matter Capacity 300 Sight Range 23 Robot Scan Range 30 Terrain Scan Range 30 Terrain Scan Density 1010 Armor Coverage 2850 Resistance: KI 30 Resistance: EX 90 Resistance: EM 90 Power Shielding 90 Weapon Cycling 25 Phase Shifting 20 Evasion (%) 60 Targeting Accuracy 12 Target Analysis 8 Core Analysis 10 Armor Integrity Analysis 66 Recoil Reduction 2 Energy Filtering 50 Particle Charging 25 Kinecelleration 50 Offensive Hacking 34 Item Schematics ----------------- None Robot Schematics ------------------ None Fabricated ------------ Exp. Sensor Array | x1 | -5/Factory Exp. Signal Interpreter | x1 | -5/Factory Exp. Sensor Array | x1 | -4/Factory X-72 Disruptor | x2 | -4/Factory I-47 Archangel | x1 | -4/Factory Quantum Capacitor | x2 | -4/Factory Vortex Chain Reactor | x1 | -4/Factory Vortex Chain Reactor | x1 | -3/Research Exp. Sensor Array | x1 | -3/Testing Alien Tech Used ----------------- Core Expander Dimensional Node Initializer Integrated Reactor Matter Drive Phase Redirector Subatomic Replicator Core Reset Matrix Integrated Singularity Reactor Integrated Heat Negator Integrity Redistributor High-powered Transdimensional Reconstructor Transdimensional Reconstructor LRC Boosters Integrated Dissipator Core Regenerator Achievements -------------- None Challenges ------------ None Game ------ Seed BiometalPointStorage Manual? 0 Play Time 11:27:00 Cumulative 1293.8 hours Start 2021.03.31 @ 00:39:52 End 2021.04.02 @ 00:51:22 Sessions 5 Manual Loads 0 Difficulty Rogue Special Mode None Game No. 413 Rogue 413 Adventurer 0 Explorer 0 Win Type 2 Total 260 Types 215/7/15/4/3/2/13/0/1 Lore% 99 Gallery% 98 Achievement% 94 Wizard Run 0 Options --------- ASCII 0 Keyboard 0 Movement Numpad Keybinds 0 Fullscreen 0 Font 14/Terminus Map View 76x50 Tactical HUD 1 Map Filters NONE Filters NONE Steam 1 RUN: be86c638-513a-485b-b002-72b0ac120bf4